{"text_format":"2","workbook":"xlsx","n_sheets":1,"sheets":["Monitoring Export 2013071911191"],"not_rendered":{"charts":0,"images":0,"macros":1,"external_links":0,"defined_names":0,"comments":0,"pivot_tables":0},"unopened":[],"bounds":{"document_bytes":16777216,"sheet_cells":100000,"run_cost":"one","rows_first":2000,"rows_last":500,"rows_between":2000,"halvings":0,"cell_chars":16384,"cell_head_chars":4096},"cells_cut":1,"cells_raw":0,"read":"whole","date_system":"1900"}

{"sheet":"Monitoring Export 2013071911191","index":0,"n_rows":134,"n_cols":18,"rows_kept":134,"cut":false,"hidden":false,"merged":[]}
["Outlet","Title/Program","Date Received","Media Group","Media Type","Publication Date","Unique Visitors Per Month","Publicity Value","Currency","Native Publicity Value","Native Currency","Company","Agent","Country","Source URL","Image","Full Text","Note"]
["Digital Publishing Solutions","News","2013-07-12","Internet","Online Print Version","2013-07-12",284,14,"USD",14,"USD",null,"Digital Inkjet Presses and Components","United States of America",{"$f":"HYPERLINK(\"http://www.dpsmagazine.com/Content/ContentCT.asp?P=791&cmpyNm=FUJIFILM%20Graphics%20Systems%20U.S.A.,%20Inc.\")","v":"http://www.dpsmagazine.com/Content/ContentCT.asp?P=791&cmpyNm=FUJIFILM%20Graphics%20Systems%20U.S.A.,%20Inc."},null,"This text has been removed due to copyright restrictions."]
["Print Monthly","PrintMonthly","2013-07-11","Internet","Online Print Version","2013-07-11",null,487.5,"USD",487.5,"USD",null,"Digital Inkjet Presses and Components","United Kingdom",{"$f":"HYPERLINK(\"http://www.printmonthly.co.uk/NewsStory.aspx?i=1648\")","v":"http://www.printmonthly.co.uk/NewsStory.aspx?i=1648"},null,"The downturn in the economic climate has had a dramatic impact on the way companies approach purchasing. A once agreed cyclical process whereby machinery was updated within a pre-determined time-frame has now been knocked off its axis. Initially it was thought that buying decisions would merely be stalled and reinstated when the recovery came. Now, however, the harsh reality is that, while investments do need to be made for competitive reasons, these may not always be in high ticket products. “In 2012 the sales of all B2 printing presses combined, from all manu-facturers in the UK, was only one fifth of that sold during the more recent peak of 2000,” states Gary Doman, head of sales for M Partners, supplier of Mitsubishi presses. He adds: “It is then not too surprising that those manufacturers who only make printing presses have suffered so much, and in some cases gone broke.” Against that backdrop, how much should manufacturers really invest in improving their machines? Mitsubishi has done little to the press in recent years—the D1000 ran at 16,000sph when introduced to the market- place and included automation as standard. “It is therefore difficult to improve, other than making it just that little bit faster in terms of running speed. With short-runs this would not be so beneficial,” says Doman, adding: “There are some additional options such as closed loop colour control systems and inspection systems, but the main consideration for customers is reliability—not sexy but vital.” Feeling the squeeze B3 printers are under pressure to effectively compete with B1 and B3 says Graham Moorby, joint managing director of Printers Superstore “B2 is extremely competitive,” says Graham Moorby, Printers Superstore joint managing director. He adds: “Run lengths are being reduced and B3 is biting away, in the same way B1 is also eating into the market. B2 printers have got to be able compete with both. The SRA2 option looks good; there is no lack of full B2 features, with interesting cost savings to consider, plus, as we understand it from our customers, 90 percent of the work they will ever run would work well at SRA2. Basically, the presses have to carry full automation and be optimized to the max, getting work out as quickly and easily as possible.” Hans Gronhi and Shinohara SRA2/B2 presses now offer full automation and are optimized to ensure the fastest possible make readies with lowest waste factors says Moorby: “The new press features include full ink profiling with ink pre-set for maximum speed of set up and a true focus of ‘up to colour’ in the shortest possible time from job to job.” Enhancements made to running speed and stock range could also broaden the appeal, while the low cost factor is also a significant benefit. “It’s all geared around keeping our customers ahead of the game and ultra-competitive,” adds Moorby. Software upgrades can help with makereadies, save production time and reduce costs, as well as stimulate business and help printers diversify into more proactive marketing with their existing customers. However, Moorby warns: “Software is one thing, but no matter how good the software is, if the machine is ageing it can compromise the print quality, which is what printers are selling. Buying a new press can mean so much more.” Going large The Rapida 76 includes automatic plate change and DriveTronic SIS no-sidelay infeed, all adapted from the B1 Rapida 106 “KBA’s natural strengths have always been in the larger formats,” states executive director, Chris Scully. He continues: “The B2 sector was identified as a priority over the last eight years and it has steadily developed competitive solutions in what is the UK’s bread and butter sector for litho print. In that period we have seen the 75 series press developed, with its most recent generation shown at Drupa. It is now an exceptionally powerful production press for the jobbing commercial sector, featuring small footprint, low energy input, and high production efficiency—especially with the new upgrade pack of 16,000sph. There is also a new Ergotronic console, Qual-itronic inline colour measurement and control system and a UV accessory package.” Also coming on stream is the Rapida 76 model, which was previewed at Drupa 2012. This 18,000sph (15,000sph perfecting) high-end solution includes automatic plate change and Drivetronic SIS no-sidelay infeed—all adapted from the B1 Rapida 106. In the delivery there are also five new systems that aid marking-free sheet transport at all production speeds, improve overall production efficiency and deliver the sheets gently into a perfect pile formation. There is also a KBA Qualitronic in-press camera Colour Control coming out of development for the stringent requirements of ISO 12467-2. It is also configured with Varidry HR UV curing systems and saves time by suspending the rollers to allow each unit of the inking train to be disengaged at the operation console. The bespoke age Attaining high throughput with minimal waste has become critical says Matt Rockley, Heidelberg product manager for B2 “Today there is no such thing as a standard machine—this is the age of the bespoke press,” states Matt Rockley, Heidelberg product manager for B2. He adds: “Most printers will add options to their press to enhance productivity, control colour and quality and to enhance its environmental credentials.” Rockley goes on to say that Heidelberg presses offer efficient energy usage per 1,000 sheets and the presses are equipped with colour control software such as Color Assistant Pro. This claims to ensure fully automated monitoring. Heidelberg also operates the Print Colour Management certification scheme, providing printers with expert consultants to help them measure, calibrate and sustain ISO12647-2. “Although the economic indicators are beginning to improve, print prices are still a challenge and attaining high throughput with minimal waste has become critical,” says Rockley. He also highlights Heidelberg solutions such as Inpress Control for automatic colour and register ad-justment, Autoplate Pro plate changing, and Prinect Pressroom Manager—which provides workflow solutions that can be linked in to other prod-uction systems and business operations. Customer retention The Fuji JetPress 720 can produce 700 sheets in 15 minutes and the first sheet is saleable Doman points out that in many cases the major concern for the client is their customer retention and being able to compete and make a margin: “Some do look at the threat of new technologies, but very few B2 commercial printers would embrace the current crop of digital B2 offerings, including the HP 10000.” He expands: “Digital production is still very much segregated from the main production areas and not only for practical reasons. They are still seen by most as a ‘different process’. Even for short-runs, unless you require VDP, a conventional litho press prob-ably is the most economical way to produce a job.” Steve Cookman, Fuji’s inkjet product manager, argues that technology can cross any boundary—it is about application. He adds that inkjet is not a replacement technology but more complementary: “Plenty of sheetfed printers reluctantly take on short-run work on their litho presses and this is spurring them on to look at what digital can offer. A highly efficient litho printer can probably make ready in ten minutes, but a more deman-ding client’s print might take a bit longer.” The Fuji Jetpress can produce 700 sheets in 15 minutes and the first sheet is saleable. It can also handle longer-runs efficiently. Cookman adds: “Inkjet will become a replacement product, but we are not there yet. Landa claims he will be, but not even he is there yet. Litho manufacturers have done an excellent job of bringing automation to their customers. “Now there are various technologies all capable of doing a job with a crossover point that is finer than it was five years or so ago. I think we all thought the press would go into commercial print houses.” Cookman continues:?“In reality, where we are at the moment includes an Italian book printer, a point-of-sale printer in Austria and a calendar printer in France. There is no single target for users.” People power Steve Cookman Fuji’s product manager inkjet argues that technology can cross any boundary - it’s about application Capital investment will only take you so far says Doman: “Software and hardware can only achieve so much—you must also invest in your people. Equip them to get the best out of the press and the peripherals. A well-trained conscientious printer will surely make a difference; after all, he will dictate how fast a press will run and how quickly it will be made ready. Finally, it does come down to the application. Most printers are aware of the tools available, such as web-to-print software, and how to apply it. It will always to come down to return on investment or risk and return. Sadly most small B2 printers are unable to take such risks, hence the drop off in machine sales. “Press purchasing has become a much more detailed technical sale than it was 20 years ago,” says Rockley, who adds: “Printers have had to define their market, to determine if they are a commodity or value added printer and to specify their press and ancillaries with that in mind.” Fuji’s Cookman concludes: “There is a lot of competition in the market and printers and designers are looking how to differentiate their businesses. It is about offering something new to their clients. People have to have an eye on the future and be open. Don’t dismiss anything.” hnf"]
["CMYKMAG","??sµ??","2013-07-11","Internet","Online Print Version","2013-07-11",242,14,"USD",14,"USD","Kodak; Kodak EP","Digital Inkjet Presses and Components","Greece",{"$f":"HYPERLINK(\"http://www.cmykmag.gr/index.php?option=com_content&task=blogcategory&id=5&Itemid=13\")","v":"http://www.cmykmag.gr/index.php?option=com_content&task=blogcategory&id=5&Itemid=13"},null,"This text has been removed due to copyright restrictions."]
["WhatTheyThink.com","The East Enders: Report From FESPA London 2013","2013-07-11","Internet","News Web Sites","2013-07-11",284,14,"USD",14,"USD",null,"Digital Inkjet Presses and Components","United States of America",{"$f":"HYPERLINK(\"http://whattheythink.com/articles/64291-east-enders-report-fespa-london-2013/\")","v":"http://whattheythink.com/articles/64291-east-enders-report-fespa-london-2013/"},null,"This text has been removed due to copyright restrictions."]
["Print Week","Communisis wins huge print deal with Lloyds TSB","2013-07-11","Internet","Online Print Version","2013-07-11",150195,57.61,"USD",57.61,"USD",null,"Digital Inkjet Presses and Components","United Kingdom",{"$f":"HYPERLINK(\"http://www.printweek.com//news/1190320/Communisis-wins-huge-deal-bank/\")","v":"http://www.printweek.com//news/1190320/Communisis-wins-huge-deal-bank/"},null,"This text has been removed due to copyright restrictions."]
["MyPrintResource.com","HP T350 Color Inkjet Web Press","2013-07-10","Internet","News Web Sites","2013-07-10",333797,14,"USD",14,"USD",null,"Digital Inkjet Presses and Components","United States of America",{"$f":"HYPERLINK(\"http://www.myprintresource.com/product/10177555/hewlett-packard-co-hp-t350-color-inkjet-web-press\")","v":"http://www.myprintresource.com/product/10177555/hewlett-packard-co-hp-t350-color-inkjet-web-press"},null,"This text has been removed due to copyright restrictions."]
["WhatTheyThink.com","The Pluses and Minuses of Inkjet ROI","2013-07-10","Internet","News Web Sites","2013-07-10",284,14,"USD",14,"USD","Kodak","Digital Inkjet Presses and Components","United States of America",{"$f":"HYPERLINK(\"http://whattheythink.com/articles/64289-pluses-minuses-inkjet-roi/\")","v":"http://whattheythink.com/articles/64289-pluses-minuses-inkjet-roi/"},null,"This text has been removed due to copyright restrictions."]
["MyPrintResource.com","HP T350 Color Inkjet Web Press from Hewlett-Packard Co.","2013-07-10","Internet","News Web Sites","2013-07-10",333797,32.979999999999997,"USD",32.979999999999997,"USD","HP","Digital Inkjet Presses and Components","United States of America",{"$f":"HYPERLINK(\"http://printingnews.com/product/10177555/hewlett-packard-co-hp-t350-color-inkjet-web-press\")","v":"http://printingnews.com/product/10177555/hewlett-packard-co-hp-t350-color-inkjet-web-press"},null,"This text has been removed due to copyright restrictions."]
["MyPrintResource.com","T400 Color Inkjet Web Press from Hewlett-Packard Co.","2013-07-10","Internet","News Web Sites","2013-07-10",333797,301.24,"USD",301.24,"USD","HP","Digital Inkjet Presses and Components","United States of America",{"$f":"HYPERLINK(\"http://printingnews.com/product/10240592/hewlett-packard-co-t400-color-inkjet-web-press\")","v":"http://printingnews.com/product/10240592/hewlett-packard-co-t400-color-inkjet-web-press"},null,"This text has been removed due to copyright restrictions."]
["GXpress","Salmat installs two inkjet webs for Australia on GXpress","2013-07-10","Internet","News Web Sites","2013-05-28",null,117.44,"USD",117.44,"USD","Oce","Digital Inkjet Presses and Components","United States of America",{"$f":"HYPERLINK(\"http://www.gxpress.net/competition-or-partner-salmat-installs-two-inkjet-webs-for-australia-cms-1282\")","v":"http://www.gxpress.net/competition-or-partner-salmat-installs-two-inkjet-webs-for-australia-cms-1282"},null,"This text has been removed due to copyright restrictions."]
["GXpress","Screen subsidiary marks 25 years in Australia on GXpress","2013-07-10","Internet","News Web Sites","2013-05-28",null,125.85,"USD",125.85,"USD","Kodak; Screen; Heidelberg","Digital Inkjet Presses and Components","United States of America",{"$f":"HYPERLINK(\"http://www.gxpress.net/screen-subsidiary-marks-25-years-in-australia-cms-2196\")","v":"http://www.gxpress.net/screen-subsidiary-marks-25-years-in-australia-cms-2196"},null,"This text has been removed due to copyright restrictions."]
["Digital Publishing Solutions","News","2013-07-10","Internet","Online Print Version","2013-06-08",284,21.08,"USD",21.08,"USD",null,"Digital Inkjet Presses and Components","United States of America",{"$f":"HYPERLINK(\"http://www.dpsmagazine.com/Content/ContentCT.asp?P=791&cmpyNm=Pitney%20Bowes\")","v":"http://www.dpsmagazine.com/Content/ContentCT.asp?P=791&cmpyNm=Pitney%20Bowes"},null,"This text has been removed due to copyright restrictions."]
["Ulitzer","Dainippon Screen Develops Wide-Format UV Inkjet Printing System for Sign and Display Industry","2013-07-10","Internet","News Web Sites","2013-06-25",10345,14,"USD",14,"USD","Screen","Digital Inkjet Presses and Components","United States of America",{"$f":"HYPERLINK(\"http://vc.ulitzer.com/node/2713068\")","v":"http://vc.ulitzer.com/node/2713068"},null,"This text has been removed due to copyright restrictions."]
["Reuters","Dainippon Screen Develops Wide-Format UV Inkjet Printing System for Sign and Display Industry\n| Reuters","2013-07-10","Internet","News Web Sites","2013-06-25",5876592,3896.47,"USD",3896.47,"USD","Screen","Digital Inkjet Presses and Components","United States of America",{"$f":"HYPERLINK(\"http://www.reuters.com/article/2013/06/25/dainippon-screen-mfg-idUSnBw255098a+100+BSW20130625\")","v":"http://www.reuters.com/article/2013/06/25/dainippon-screen-mfg-idUSnBw255098a+100+BSW20130625"},null,"This text has been removed due to copyright restrictions."]
["Publisher","Branchentreff in London","2013-07-10","Internet","Online Print Version","2013-06-13",null,643.87,"USD",643.87,"USD","HP; Screen; Agfa","Digital Inkjet Presses and Components","Switzerland",{"$f":"HYPERLINK(\"http://www.publisher.ch/fachzeitschrift_detail.php?t=Branchentreff%2Bin%2BLondon&read_article=6488&t=Branchentreff%20in%20London\")","v":"http://www.publisher.ch/fachzeitschrift_detail.php?t=Branchentreff%2Bin%2BLondon&read_article=6488&t=Branchentreff%20in%20London"},null,"This text has been removed due to copyright restrictions."]
["GXpress","Rhythm and blues on GXpress","2013-07-10","Internet","News Web Sites","2013-05-28",null,1052.56,"USD",1052.56,"USD","Kodak; Screen; Agfa","Digital Inkjet Presses and Components","United States of America",{"$f":"HYPERLINK(\"http://www.gxpress.net/ifraexpo-retrospective-rhythm-and-blues-cms-487\")","v":"http://www.gxpress.net/ifraexpo-retrospective-rhythm-and-blues-cms-487"},null,"This text has been removed due to copyright restrictions."]
["Print & Paper Online","A FESPA flypast - Digital Printer Magazine","2013-07-10","Internet","News Web Sites","2013-06-18",null,498.09,"USD",498.09,"USD","HP; Screen; Canon; Agfa","Digital Inkjet Presses and Components","United Kingdom",{"$f":"HYPERLINK(\"http://www.paperandprint.com/digital-printer/features/dp-2013/june-2013/17-06-13-fespa-preview.aspx\")","v":"http://www.paperandprint.com/digital-printer/features/dp-2013/june-2013/17-06-13-fespa-preview.aspx"},null,"This text has been removed due to copyright restrictions."]
["Graphic Display World","Graphic Display World - Screen Europe to unveil new Truepress Jet flatbed at FESPA","2013-07-10","Internet","News Web Sites","2013-06-07",15438,14,"USD",14,"USD","Screen","Digital Inkjet Presses and Components","United Kingdom",{"$f":"HYPERLINK(\"http://www.graphicdisplayworld.com/wideformat/2102-screen-europe-to-unveil-new-truepress-jet-flatbed-at-fespa\")","v":"http://www.graphicdisplayworld.com/wideformat/2102-screen-europe-to-unveil-new-truepress-jet-flatbed-at-fespa"},null,"This text has been removed due to copyright restrictions."]
["World of Print online","World of Print: News","2013-07-10","Internet","Online Print Version","2013-06-18",2051,14,"USD",14,"USD","Kodak","Digital Inkjet Presses and Components","Germany",{"$f":"HYPERLINK(\"http://www.worldofprint.de/meldung2.php?NID=10155137\")","v":"http://www.worldofprint.de/meldung2.php?NID=10155137"},null,"This text has been removed due to copyright restrictions."]
["GXpress","News puts digital 'Australian' on the front seats out of London on GXpress","2013-07-10","Internet","News Web Sites","2013-05-28",null,82.24,"USD",82.24,"USD","Oce","Digital Inkjet Presses and Components","United States of America",{"$f":"HYPERLINK(\"http://www.gxpress.net/news-puts-digital-australian-on-the-front-seats-out-of-london-cms-899\")","v":"http://www.gxpress.net/news-puts-digital-australian-on-the-front-seats-out-of-london-cms-899"},null,"This text has been removed due to copyright restrictions."]
["Boston.com","Dainippon Screen Develops Wide-Format UV Inkjet Printing System for Sign and Display Industry","2013-07-10","Internet","News Web Sites","2013-06-25",2928499,1842.7,"USD",1842.7,"USD","Screen","Digital Inkjet Presses and Components","United States of America",{"$f":"HYPERLINK(\"http://finance.boston.com/boston/news/read/24499507/dainippon_screen_develops_wide\")","v":"http://finance.boston.com/boston/news/read/24499507/dainippon_screen_develops_wide"},null,"This text has been removed due to copyright restrictions."]
["AVing.net","[???? ??] 3D?? ??? 4D ???! SCODIX ??? ??? S ???","2013-07-10","Internet","News Web Sites","2013-05-30",545,14,"USD",14,"USD",null,"Digital Inkjet Presses and Components","Korea (South)",{"$f":"HYPERLINK(\"http://kr.aving.net/news/view.php?articleId=717848&mn_name=news\")","v":"http://kr.aving.net/news/view.php?articleId=717848&mn_name=news"},null,"This text has been removed due to copyright restrictions."]
["Headsets","Dainippon Screen Develops Wide-Format UV Inkjet Printing System for Sign and Display Industry","2013-07-10","Internet","News Web Sites","2013-06-25",284,14,"USD",14,"USD","Screen","Digital Inkjet Presses and Components","United States of America",{"$f":"HYPERLINK(\"http://technews.tmcnet.com/news/2013/06/25/7228729.htm\")","v":"http://technews.tmcnet.com/news/2013/06/25/7228729.htm"},null,"This text has been removed due to copyright restrictions."]
["NATE","[???? ??] 3D?? ??? 4D ???! SCODIX ??? ??? S ??? : ??? ??","2013-07-10","Internet","News Web Sites","2013-05-30",61,14,"USD",14,"USD",null,"Digital Inkjet Presses and Components","Korea (South)",{"$f":"HYPERLINK(\"http://news.nate.com/view/20130530n09367?mid=n1101\")","v":"http://news.nate.com/view/20130530n09367?mid=n1101"},null,"This text has been removed due to copyright restrictions."]
["SYS-CON Australia","Dainippon Screen Develops Wide-Format UV Inkjet Printing System for Sign and Display Industry","2013-07-10","Internet","News Web Sites","2013-06-25",290,14,"USD",14,"USD","Screen","Digital Inkjet Presses and Components","Australia",{"$f":"HYPERLINK(\"http://au.sys-con.com/node/2713068\")","v":"http://au.sys-con.com/node/2713068"},null,"This text has been removed due to copyright restrictions."]
["Publish.ru","?????? ? ?????????? ? ???????????? ???????????","2013-07-10","Internet","Online Print Version","2013-06-22",46667,14,"USD",14,"USD","Screen","Digital Inkjet Presses and Components","Russia",{"$f":"HYPERLINK(\"http://www.publish.ru/news/201307-08_20086443\")","v":"http://www.publish.ru/news/201307-08_20086443"},null,"This text has been removed due to copyright restrictions."]
["Digital Publishing Solutions","News","2013-07-10","Internet","Online Print Version","2013-05-24",284,20.92,"USD",20.92,"USD",null,"Digital Inkjet Presses and Components","United States of America",{"$f":"HYPERLINK(\"http://www.dpsmagazine.com/Content/ContentCT.asp?P=791&cmpyNm=Pitney%20Bowes\")","v":"http://www.dpsmagazine.com/Content/ContentCT.asp?P=791&cmpyNm=Pitney%20Bowes"},null,"This text has been removed due to copyright restrictions."]
["www.graficus.nl","Jetmail 25 jaar","2013-07-10","Internet","Online Print Version","2013-06-20",121,14,"USD",14,"USD","Oce; Canon","Digital Inkjet Presses and Components","Netherlands",{"$f":"HYPERLINK(\"http://www.graficus.nl/nieuws/17402-jetmail-25-jaar.html\")","v":"http://www.graficus.nl/nieuws/17402-jetmail-25-jaar.html"},null,"This text has been removed due to copyright restrictions."]
["SYS-CON Media Online","Dainippon Screen Develops Wide-Format UV Inkjet Printing System for Sign and Display Industry","2013-07-10","Internet","News Web Sites","2013-06-25",40703,25.54,"USD",25.54,"USD","Screen","Digital Inkjet Presses and Components","United States of America",{"$f":"HYPERLINK(\"http://www.sys-con.com/node/2713068\")","v":"http://www.sys-con.com/node/2713068"},null,"This text has been removed due to copyright restrictions."]
["Print & Paper Online","Hybrid printing - a second bite of the cherry","2013-07-10","Internet","News Web Sites","2013-05-28",null,434.85,"USD",434.85,"USD","HP; Kodak","Digital Inkjet Presses and Components","United Kingdom",{"$f":"HYPERLINK(\"http://www.paperandprint.com/digital-printer/features/dp-2013/may-2013/28-05-03-hybrid-printing.aspx\")","v":"http://www.paperandprint.com/digital-printer/features/dp-2013/may-2013/28-05-03-hybrid-printing.aspx"},null,"This text has been removed due to copyright restrictions."]
["Yahoo!","Dainippon Screen Develops Wide-Format UV Inkjet Printing System for Sign and Display Industry","2013-07-10","Internet","News Web Sites","2013-06-25",185066400,28000,"USD",28000,"USD","Screen","Digital Inkjet Presses and Components","United States of America",{"$f":"HYPERLINK(\"http://nz.finance.yahoo.com/news/dainippon-screen-develops-wide-format-080000194.html\")","v":"http://nz.finance.yahoo.com/news/dainippon-screen-develops-wide-format-080000194.html"},null,"This text has been removed due to copyright restrictions."]
["Svet tisku","Svet tisku - Canon Europe pomáhá priblížit noviny ctenárum s pomocí digitální tiskárny Océ ColorStream® 3900","2013-07-10","Internet","Online Print Version","2013-06-10",null,235.81,"USD",235.81,"USD","Oce; Canon","Digital Inkjet Presses and Components","Czech Republic",{"$f":"HYPERLINK(\"http://www.svettisku.cz/buxus/generate_page.php?page_id=7535&buxus_svettisku=9da50ae87d53c9d0b95d1483a22c0cc2\")","v":"http://www.svettisku.cz/buxus/generate_page.php?page_id=7535&buxus_svettisku=9da50ae87d53c9d0b95d1483a22c0cc2"},null,"This text has been removed due to copyright restrictions."]
["MyPrintResource.com","Onset Q40i from Inca Digital Printers Ltd","2013-07-10","Internet","News Web Sites","2013-06-17",333797,289.95,"USD",289.95,"USD","Screen","Digital Inkjet Presses and Components","United States of America",{"$f":"HYPERLINK(\"http://printingnews.com/product/10954242/inca-digital-printers-ltd-onset-q40i\")","v":"http://printingnews.com/product/10954242/inca-digital-printers-ltd-onset-q40i"},null,"This text has been removed due to copyright restrictions."]
["prepressworld.de","Die Eindrucksysteme der KODAK PROSPER S-Serie basieren auf Kodaks Stream Inkjet-","2013-07-10","Internet","Online Print Version","2013-06-18",4102,14,"USD",14,"USD","Kodak","Digital Inkjet Presses and Components","Germany",{"$f":"HYPERLINK(\"http://www.prepressworld.de/meldung2.php?NID=10155137\")","v":"http://www.prepressworld.de/meldung2.php?NID=10155137"},null,"This text has been removed due to copyright restrictions."]
["DailyFinance","St Ives Places Full Confidence in KODAK Plates and Ink Technology","2013-07-10","Internet","News Web Sites","2013-06-10",1285384,1022.73,"USD",1022.73,"USD","Kodak","Digital Inkjet Presses and Components","United States of America",{"$f":"HYPERLINK(\"http://ct.moreover.com/ct?haid=b3f0f0f02f8539bb1370876768133f491b42089ab4894&amp;co=f000000009816s-1158206718\")","v":"http://ct.moreover.com/ct?haid=b3f0f0f02f8539bb1370876768133f491b42089ab4894&amp;co=f000000009816s-1158206718"},null,"This text has been removed due to copyright restrictions."]
["Presse Box","Screen Europe launches digital UV label press & appoints Dantex as specialist distributor - Screen Europe","2013-07-10","Internet","News Web Sites","2013-06-18",150000,116.95,"USD",116.95,"USD","Screen","Digital Inkjet Presses and Components","Germany",{"$f":"HYPERLINK(\"http://www.pressebox.de/inaktiv/screen-europe/Screen-Europe-launches-digital-UV-label-press-appoints-Dantex-as-specialist-distributor/boxid/604754\")","v":"http://www.pressebox.de/inaktiv/screen-europe/Screen-Europe-launches-digital-UV-label-press-appoints-Dantex-as-specialist-distributor/boxid/604754"},null,"This text has been removed due to copyright restrictions."]
["Labelling Blog","Kodak helps Mediagraf Produce Customised Print with the KODAK Prosper S20 Imprinting System","2013-07-10","Internet","Blogs","2013-06-10",null,237.99,"USD",237.99,"USD","Kodak","Digital Inkjet Presses and Components","United States of America",{"$f":"HYPERLINK(\"http://ct.moreover.com/ct?haid=88ab27f6a65671b81370868382654d3c94538b22f49b5&amp;co=f000000009816s-1158206718\")","v":"http://ct.moreover.com/ct?haid=88ab27f6a65671b81370868382654d3c94538b22f49b5&amp;co=f000000009816s-1158206718"},null,"This text has been removed due to copyright restrictions."]
["Poligrafika.PL","Screen Europe wprowadza cyfrowa maszyne UV do druku etykiet","2013-07-10","Internet","Online Print Version","2013-06-19",61,14,"USD",14,"USD","Screen","Digital Inkjet Presses and Components","Poland",{"$f":"HYPERLINK(\"http://www.poligrafika.pl/news/3972/\")","v":"http://www.poligrafika.pl/news/3972/"},null,"19 czerwiec 2013, 10:45:10 \n  Screen Europe oglosilo rozpoczecie sprzedazy Truepress Jet L350UV, swojej pierwszej cyfrowej maszyny UV do druku etykiet i wybral Dantex jako europejskiego dystrybutora. \n  Przedpremierowy model Truepress Jet L350UV zostal po raz pierwszy pokazany podczas targów drupa 2012. Od tego czasu maszyna zostala udoskonalona, przygotowana do rozpoczecia produkcji i wprowadzenia jej na rynek EMEA. \n  Naklad pracy poswiecony na stworzenie i udoskonalenie urzadzenia spowodowal, ze Truepreess Jet L350UV osiaga jedna z najwyzszych wydajnosci ponad 16 m2 etykiet na minute przy szerokosci wstegi 350 mm i pozwala uzyskac fotograficzna jakosc, mozliwosc szybkiej zmiany wzorów oraz stabilna produkcje. \n  W polaczeniu z zaawansowana technologia zarzadzania kolorem na bazie uniwersalnego systemu EQUIOS firmy Screen, Truepress Jet L350UV tworzy wysokiej jakosci delikatne przejscia tonalne. W celu zapewnienia szerszego spektrum kolorów niz zwykle uzyskiwane w procesie czterokolorowym, Truepress Jet L350UV uzywa specjalnych tuszów UV firmy Screen o wysokiej jakosci. Opcjonalny, kryjacy bialy tusz dodatkowo wzmacnia intensywnosc barwy kolorów, jednoczesnie powiekszajac mozliwosci przez umozliwienie druku na przezroczystej lub metalicznej folii. Maszyna zawiera jednoprzebiegowa, piezoelektryczna glowice tonalna z minimalna wielkoscia kropli 3 pikolitrów. Rozdzielczosc druku 600x600 dpi polaczona z bardzo malym rozmiarem kropli daje niezwykle ostry i wyrazny zarówno obraz, jak i tekst. \n  Maszyna jest wytwarzana albo jako drukarka z roli na role z mozliwoscia wykanczania druku na innych urzadzeniach, albo jako w pelni zautomatyzowana, posiadajaca w linii takie mozliwosci wykonczenia jak: laminowanie, wycinanie, foliowanie, lakierowanie czy wytlaczanie. \n  Wraz z rozpoczeciem sprzedazy Truepress Jet L350UV firma Screen Europe oglosila, ze wybrala firme Dantex, jednego z najwiekszych dostawców dla przemyslu opakowaniowego, jako dystrybutora urzadzenia w Austrii, Belgii, we Francji, w Niemczech, Irlandii, Polsce, Szwajcarii, Turcji i Wielkiej Brytanii. \n  „Firma Screen stawia sobie za cel dostarczanie dla przemyslu opakowan szeregu wysokiej jakosci, niezawodnych rozwiazan druku cyfrowego, które sa elastyczne, tanie w utrzymaniu i umozliwiaja szybki zwrot inwestycji. Urzadzenie Trupress Jet L350UV jest swietna drukarka cyfrowa stworzona z mysla o tym, aby odpowiedziec na zapotrzebowanie rynku co do produkcji konkurencyjnych, wysokiej jakosci etykiet” - mówi Brian Filler, prezes firmy Screen Europe. - Nasza wspólpraca z firma Dantex to idealne rozwiazanie przy pojawieniu sie tego nowego urzadzenia. Dantex ma ogromne doswiadczenie w sprzedazy, instalacji oraz specjalistów wsparcia technicznego maszyn produkcyjnych w przemysle opakowaniowym, co sprawia, ze jest idealnym partnerem dla nas oraz dla klientów w regionie”. \n  Richard Danon, prezes firmy Dantex, mówi: „Bardzo sie cieszymy z tej nowej wspólpracy z firma Screen przy sprzedazy i promocji urzadzenia Trupress Jet L350UV. Jako producent i dostawca na rynku etykiet, patrzymy na te nowa pozycje w naszym portfolio z duzym zainteresowaniem. Nasza firma ma bogate doswiadczenie na rynku etykiet, a w polaczeniu z doswiadczeniami firmy Screen w technologii generowania obrazu rozpoczynamy ciekawa forme wspólpracy po to, aby dostarczyc naszym klientom te nowa technologie. \n  Nasza umowa z firma Screen opiera sie na prawach do sprzedazy w wiekszosci krajów, w których Dantex posiada swoje biura. To pozwoli nam lepiej poprowadzic naszych klientów, którzy beda zainteresowani drukiem cyfrowym bez straty czasu, jakosci i niezawodnosci. (...) “ \n  Poza wspólpraca z firma Dantex na wspomnianych wczesniej rynkach, firma Screen bedzie takze pracowac z innymi partnerami w calym regionie EMEA. \n  Pierwsza prezentacja urzadzenia Truepress Jet L350UV odbedzie sie podczas targów LabelExpo Europe (24-27 wrzesnia br. w Brukseli), gdzie bedzie demonstrowana zarówno przez firme Screen, jak i firme Dantex. \n  Opracowano na podstawie informacji firmy Screen"]
["WhatTheyThink.com","First Screen Truepress JetSX Sheetfed Inkjet Press in North America Installed at Foremost Communications","2013-07-10","Internet","News Web Sites","2013-06-24",284,14,"USD",14,"USD","Screen; Heidelberg","Digital Inkjet Presses and Components","United States of America",{"$f":"HYPERLINK(\"http://whattheythink.com/news/64192-first-screen-truepress-jetsx-sheetfed-inkjet-press-north-america-installed-foremost-communications/\")","v":"http://whattheythink.com/news/64192-first-screen-truepress-jetsx-sheetfed-inkjet-press-north-america-installed-foremost-communications/"},null,"This text has been removed due to copyright restrictions."]
["Document Wereld","Intermail BV breidt printerpark uit met Océ ColorStream","2013-07-10","Internet","Online Print Version","2013-06-11",null,151.69999999999999,"USD",151.69999999999999,"USD","Oce; Canon","Digital Inkjet Presses and Components","Netherlands",{"$f":"HYPERLINK(\"http://www.documentwereld.nl/nieuws/1/8343-intermail_bv_breidt_printerpark_uit_met_oc%C3%A9_colorstream\")","v":"http://www.documentwereld.nl/nieuws/1/8343-intermail_bv_breidt_printerpark_uit_met_oc%C3%A9_colorstream"},null,"This text has been removed due to copyright restrictions."]
["PRWeb","Mail-Gard® Installs Océ Jetstream® 2200 to Boost Capacity for High-Volume, Full-Color Variable Printing","2013-07-10","Internet","News Web Sites","2013-05-23",753809,251.58,"USD",251.58,"USD","Oce","Digital Inkjet Presses and Components","United States of America",{"$f":"HYPERLINK(\"http://www.prweb.com/releases/2013/5/prweb10759648.htm\")","v":"http://www.prweb.com/releases/2013/5/prweb10759648.htm"},null,"This text has been removed due to copyright restrictions."]
["Digital Publishing Solutions","News","2013-07-10","Internet","Online Print Version","2013-04-26",284,14,"USD",14,"USD","Screen; Xerox","Digital Inkjet Presses and Components","United States of America",{"$f":"HYPERLINK(\"http://www.dpsmagazine.com/Content/ContentCT.asp?P=791&cmpyNm=Crawford%20Technologies%20Inc.\")","v":"http://www.dpsmagazine.com/Content/ContentCT.asp?P=791&cmpyNm=Crawford%20Technologies%20Inc."},null,"This text has been removed due to copyright restrictions."]
["Digital Publishing Solutions","News","2013-07-10","Internet","Online Print Version","2013-04-18",284,20.83,"USD",20.83,"USD","HP","Digital Inkjet Presses and Components","United States of America",{"$f":"HYPERLINK(\"http://www.dpsmagazine.com/Content/ContentCT.asp?P=791&cmpyNm=Pitney%20Bowes\")","v":"http://www.dpsmagazine.com/Content/ContentCT.asp?P=791&cmpyNm=Pitney%20Bowes"},null,"This text has been removed due to copyright restrictions."]
["Digital Publishing Solutions","News","2013-07-10","Internet","Online Print Version","2013-04-12",284,14,"USD",14,"USD","HP; Kodak; Screen; Xerox; Xeikon","Digital Inkjet Presses and Components","United States of America",{"$f":"HYPERLINK(\"http://www.dpsmagazine.com/Content/ContentCT.asp?P=791&cmpyNm=GMC%20Software%20Technology%20Inc.\")","v":"http://www.dpsmagazine.com/Content/ContentCT.asp?P=791&cmpyNm=GMC%20Software%20Technology%20Inc."},null,"This text has been removed due to copyright restrictions."]
["Presse Box","Christie YK200 & Christie MicroTiles beim Live-Finale von \"\"The Voice of Germany\"\" - CHRISTIE","2013-07-10","Internet","News Web Sites","2013-04-11",150000,119.62,"USD",119.62,"USD","Kodak","Digital Inkjet Presses and Components","Germany",{"$f":"HYPERLINK(\"http://www.pressebox.de/inaktiv/christie/Christie-YK200-Christie-MicroTiles-beim-Live-Finale-von-The-Voice-of-Germany/boxid/587617\")","v":"http://www.pressebox.de/inaktiv/christie/Christie-YK200-Christie-MicroTiles-beim-Live-Finale-von-The-Voice-of-Germany/boxid/587617"},null,"This text has been removed due to copyright restrictions."]
["Presse Box","BlinkSight and imec announce world's first single-chip indoor GPS solution - imec","2013-07-10","Internet","News Web Sites","2013-04-11",150000,127.89,"USD",127.89,"USD","Kodak","Digital Inkjet Presses and Components","Germany",{"$f":"HYPERLINK(\"http://www.pressebox.de/inaktiv/imec/BlinkSight-and-imec-announce-worlds-first-single-chip-indoor-GPS-solution/boxid/587598\")","v":"http://www.pressebox.de/inaktiv/imec/BlinkSight-and-imec-announce-worlds-first-single-chip-indoor-GPS-solution/boxid/587598"},null,"This text has been removed due to copyright restrictions."]
["Presse Box","BlinkSight and imec announce world's first single-chip indoor GPS solution - imec","2013-07-10","Internet","News Web Sites","2013-04-11",150000,127.89,"USD",127.89,"USD","Kodak","Digital Inkjet Presses and Components","Germany",{"$f":"HYPERLINK(\"http://www.pressebox.com/inactive/imec/BlinkSight-and-imec-announce-worlds-first-single-chip-indoor-GPS-solution/boxid/587598\")","v":"http://www.pressebox.com/inactive/imec/BlinkSight-and-imec-announce-worlds-first-single-chip-indoor-GPS-solution/boxid/587598"},null,"This text has been removed due to copyright restrictions."]
["Druckspiegel","Der Druckspiegel - Produkt-News","2013-07-10","Internet","Online Print Version","2013-06-25",24610,87.63,"USD",87.63,"USD","HP; Esko; Oce; Screen; Canon; Agfa; Heidelberg","Digital Inkjet Presses and Components","Germany",{"$f":"HYPERLINK(\"http://www.druckspiegel.de/druckspiegel/Home/ProduktNews\")","v":"http://www.druckspiegel.de/druckspiegel/Home/ProduktNews"},null,"This text has been removed due to copyright restrictions."]
["polimag","??????? ???????? | polimag.ru","2013-07-10","Internet","News Web Sites","2013-04-15",null,108.71,"USD",108.71,"USD","Kodak; Oce","Digital Inkjet Presses and Components","Russia",{"$f":"HYPERLINK(\"http://www.polimag.ru/?PHPSESSID=027d24fb7578a5750185c79dcfbe601d\")","v":"http://www.polimag.ru/?PHPSESSID=027d24fb7578a5750185c79dcfbe601d"},null,"This text has been removed due to copyright restrictions."]
["Media Guide","????? ??????? ????? ?????","2013-07-10","Internet","News Web Sites","2013-06-11",19001,57.97,"USD",57.97,"USD",null,"Digital Inkjet Presses and Components","United States of America",{"$f":"HYPERLINK(\"http://mediaguide.ru/?p=news&id=51b6e9dc\")","v":"http://mediaguide.ru/?p=news&id=51b6e9dc"},null,"This text has been removed due to copyright restrictions."]
["Nieuwsbank.nl","Het printen van kranten is een nichemarkt","2013-07-10","Internet","Online Print Version","2013-04-16",62874,42.08,"USD",42.08,"USD","Kodak; Oce; Screen; Xerox; Canon","Digital Inkjet Presses and Components","Netherlands",{"$f":"HYPERLINK(\"http://www.nieuwsbank.nl/inp/2013/04/16/T378.htm\")","v":"http://www.nieuwsbank.nl/inp/2013/04/16/T378.htm"},null,"This text has been removed due to copyright restrictions."]
["Print Week","Exhibitors reveal show kit line-ups","2013-07-10","Internet","Online Print Version","2013-04-25",150195,449.41,"USD",449.41,"USD","Screen","Digital Inkjet Presses and Components","United Kingdom",{"$f":"HYPERLINK(\"http://www.printweek.com/news/1179956/north-print-pack-exhibitors-reveal-kit-line-ups/\")","v":"http://www.printweek.com/news/1179956/north-print-pack-exhibitors-reveal-kit-line-ups/"},null,"This text has been removed due to copyright restrictions."]
["SIGNINDUSTRY.com","The State of Industrial Large-Format Inkjet Printing","2013-07-10","Internet","News Web Sites","2013-06-16",null,1111.1199999999999,"USD",1111.1199999999999,"USD","HP; Screen","Digital Inkjet Presses and Components","United States of America",{"$f":"HYPERLINK(\"http://www.signindustry.com/outdoor/articles/2013-06-17-State-of-Industrial-Large-Format-Inkjet-Printing.php3\")","v":"http://www.signindustry.com/outdoor/articles/2013-06-17-State-of-Industrial-Large-Format-Inkjet-Printing.php3"},null,{"$cut":{"chars":23598,"head":"The State of Industrial Large-Format Inkjet Printing By Vince Cahill, President, VCE Solutions Technological advances in print head, machine, ink and software design and manufacturing have driven much of the growth and change for Industrial Digital printing. Four companies - Durst, EFI Vutek, Hewlett Packard and Inca Digital - have led the high-throughput, large-format inkjet industry with their offerings of high-end industrial printers. Their manufacturing accounts for the overwhelming number of wide- and grand-format flatbed and roll-to-roll inkjet system placements worldwide. We place some other major inkjet machine manufacturers in other categories. For example, we locate leaders like Roland, Mimaki and Mutoh, in the low to medium production printer manufacturer category. In the past, I have defined large format as printed media of 0.6 meters (24 inches) wide or greater and grand format as printed media wider than 2.5 meters (98 inches). One of our interviewees, Chris Howard of Durst, however, indicates that his company's large-format definition, \"\"is not so much based on the size of the printed material, but the types of products produced by the graphics provider - we rather look at relevant machines that are for the applications the customers are producing.\"\" From this viewpoint, applications define format. Office and label printers are narrow format. Commercial B2 format inkjet presses are medium format. Most sign and point-of-purchase (POP) flatbed and roll-to-roll inkjet printers are large format. Billboard printers are grand format. This article reports interviews with representatives of four high-production large-format industrial inkjet machine manufacturers about their views on the current state of the industry, how technology has evolved over the past year and where technology is headed in the year ahead. The conversation begins with an industry founder and innovator. Inca Digital Bill Baxter is the founding managing director of Inca Digital, which he established with a team of technologists from Cambridge Consultants in 2000. He led the company in building the first UV curable inkjet flatbed printer, the Eagle 44, which debuted in January of 2001. He directed Inca to win two Queen's Awards for Enterprise in 2005. During the same year, he negotiated Dainippon Screen's acquisition of the company. Baxter emphasized that in the short to medium term, advances in inkjet ink technology will be more important for driving the industry's adoption of industrial inkjet systems than changes in the print machines. Recent improvements in inkjet ink color gamut, flexibility and adhesion have increased the penetration of high-end inkjet solutions into previous analog domains. He cited Inca Digital's partnerships with Fujifilm for creating new ink solutions that have expanded the range of print options for their print service providers (PSP). Baxter related that Inca invented a patented system for controlling the gloss level of its Fujifilm UVijet inks. It also discovered that it could increase the gamut of their new CMYK plus light cyan and light magenta six-color print system by increasing the level of ink gloss. Inca Digital and Fujifilm have worked closely with print head supplier Dimatix to produce inks that are compatible with its print heads and that, with Inca's tuned electronics, match customer application requirements. He indicated that as early as 2002, Inca had begun to develop and use ink recirculation. Baxter noted that while some applications do not require recirculation to keep pigments in suspension, the printing of titanium dioxide (TiO2) white pigment is greatly facilitated by it and the start up time for jetting all inks is greatly reduced. During September 2012, Inca Digital added a new production facility in Cambridge, United Kingdom. This expansion doubled its production capabilities. Adding to this expansion in 2012, Inca Digital introduced the Onset s40i and s20i, which upgraded and superseded the Onset s40 and Onset s20 respectively. According to Inca, the new upgrades add, \"\"intelligent design fea"}}]
["Print & Produktion","Wirtschaft / Personalien - Print & Produktion","2013-07-10","Internet","Online Print Version","2013-04-17",2051,14,"USD",14,"USD","HP; Kodak; Oce; Screen; Xerox; Canon; Agfa; Heidelberg","Digital Inkjet Presses and Components","Germany",{"$f":"HYPERLINK(\"http://www.print-produktion.net/berichte/wirtschaft-personalien/\")","v":"http://www.print-produktion.net/berichte/wirtschaft-personalien/"},null,"This text has been removed due to copyright restrictions."]
["Print & Produktion","Wirtschaft / Personalien - Print & Produktion","2013-07-10","Internet","Online Print Version","2013-06-15",2051,14,"USD",14,"USD","HP; Kodak; Oce; Screen; Xerox; Canon; Agfa; Heidelberg","Digital Inkjet Presses and Components","Germany",{"$f":"HYPERLINK(\"http://www.print-produktion.net/berichte/wirtschaft-personalien/\")","v":"http://www.print-produktion.net/berichte/wirtschaft-personalien/"},null,"This text has been removed due to copyright restrictions."]
["Print & Produktion","Wirtschaft / Personalien - Print & Produktion","2013-07-10","Internet","Online Print Version","2013-06-21",2051,14,"USD",14,"USD","HP; Kodak; Oce; Screen; Xerox; Canon; Agfa; Heidelberg","Digital Inkjet Presses and Components","Germany",{"$f":"HYPERLINK(\"http://www.print-produktion.net/berichte/wirtschaft-personalien/\")","v":"http://www.print-produktion.net/berichte/wirtschaft-personalien/"},null,"This text has been removed due to copyright restrictions."]
["Print Week","Get a seat in business class as London show takes off","2013-07-10","Internet","Online Print Version","2013-06-12",150195,138.22,"USD",138.22,"USD","Screen; Agfa","Digital Inkjet Presses and Components","United Kingdom",{"$f":"HYPERLINK(\"http://www.printweek.com//news/1185594/Fespa-preview-seat-business-class-London-show-takes-off/\")","v":"http://www.printweek.com//news/1185594/Fespa-preview-seat-business-class-London-show-takes-off/"},null,"This text has been removed due to copyright restrictions."]
["Print & Produktion","Wirtschaft / Personalien - Print & Produktion","2013-07-10","Internet","Online Print Version","2013-04-11",2051,14,"USD",14,"USD","HP; Kodak; Oce; Screen; Xerox; Canon; Agfa; Heidelberg","Digital Inkjet Presses and Components","Germany",{"$f":"HYPERLINK(\"http://www.print-produktion.net/berichte/wirtschaft-personalien/\")","v":"http://www.print-produktion.net/berichte/wirtschaft-personalien/"},null,"This text has been removed due to copyright restrictions."]
["Print & Paper Online","Kodak agrees exclusive five year contract with St Ives","2013-07-10","Internet","News Web Sites","2013-06-11",null,95.32,"USD",95.32,"USD","Kodak","Digital Inkjet Presses and Components","United Kingdom",{"$f":"HYPERLINK(\"http://www.paperandprint.com/digital-printer/news/dp-2013/june-2013/10-06-13-kodak.aspx\")","v":"http://www.paperandprint.com/digital-printer/news/dp-2013/june-2013/10-06-13-kodak.aspx"},null,"This text has been removed due to copyright restrictions."]
["splash!pr grafixwire","Andrew’s a winner with RCS, Screen and Conversion","2013-07-10","Internet","Blogs","2013-06-19",null,128.65,"USD",128.65,"USD","Screen","Digital Inkjet Presses and Components","United States of America",{"$f":"HYPERLINK(\"http://ct.moreover.com/ct?haid=bac9d61463e5c2331371653704213b52b0a02ffd24027&amp;co=f000000009816s-1158206718\")","v":"http://ct.moreover.com/ct?haid=bac9d61463e5c2331371653704213b52b0a02ffd24027&amp;co=f000000009816s-1158206718"},null,"This text has been removed due to copyright restrictions."]
["Print Week","Revamped northern show packs a punch","2013-07-10","Internet","Online Print Version","2013-04-25",150195,267.08,"USD",267.08,"USD","Screen","Digital Inkjet Presses and Components","United Kingdom",{"$f":"HYPERLINK(\"http://www.printweek.com/news/1179945/revamped-northern-show-packs-punch/\")","v":"http://www.printweek.com/news/1179945/revamped-northern-show-packs-punch/"},null,"This text has been removed due to copyright restrictions."]
["Graphixmag.co.za","Mediagraf invests with Kodak","2013-07-10","Internet","Online Print Version","2013-06-18",null,147.34,"USD",147.34,"USD","Kodak","Digital Inkjet Presses and Components","South Africa",{"$f":"HYPERLINK(\"http://www.graphixmag.co.za/news/560-mediagraf-invests-with-kodak\")","v":"http://www.graphixmag.co.za/news/560-mediagraf-invests-with-kodak"},null,"Details Published on Tuesday, 18 June 2013 08:14 Written by Staff writer Italian print service provider, Mediagraf recently broadened its portfolio of print products and entered new markets after investing in the Kodak Prosper S20 Imprinting system. The solution is enabling the company to produce a wide variety of high-quality personalised print products, and establish itself as a valuable player in the marketing services chain. For a number of years the company has collaborated with Parma University to encourage businesses and organisations to use flyers and leaflets more effectively. They are distributed by the billions in Italy, and in December 2012 around 29 per cent of supermarkets and 34 per cent of hypermarkets were using them for sales promotions, with personalised versions on the increase. Director of purchasing, logistics and Information Systems, Fabio Fogarin comments: ‘Advances in printing technology have transformed the flyer from a form of mass communication to a way of reaching people with personalised, relevant content. We wanted a solution that would allow us to deliver customised content and capitalise on this shift. The answer was the Kodak system, which combines web offset printing with 100 per cent variable data.’ Based on Kodak’s stream inkjet technology, the system has a printing width of 10.6cm, resolution of 600 x 300 dpi, and operates at a print speed of up to 600 m/min. The print area can be placed horizontally or vertically, ensuring optimal integration between web offset printing with its speed and efficiency, and digital with its customised variable data. The system uses pigment-based inks that offer consistency, deep blacks, and remarkable resistance to scratches and water on a wide range of substrates. Director of industrial activities at Mediagraf, Davide Dei Rossi says: ‘The system went into production in January 2013 and was installed on a KBA Compacta 618. We needed a solution that wouldn’t adversely affect the web machine – the velocity of the printheads meets this requirement. We can print text, photos, bar codes and alphanumeric codes, QR codes, and more, with excellent print quality on mass and food flyers, as well as self-covered magazines, editorial publications and a wide variety of print collateral using news, BC and LWC paper. Also, to monitor the printed variable data, we installed a camera that can certify EAN8 and EAN13 bar codes, Datamatrix, and QR codes.’ Founded in 1988, the company’s production falls into three categories: commercial print for mass and food (45 per cent), secular and Catholic publishing (30 per cent), and publishing services (25 per cent). It is owned by three entities: Paduan Province of Minor Conventual Friars (45 per cent), Diocese of Padua (30 per cent) and CEI (25 per cent); and employs 170 staff across two sites: Noventa Padovana (PD), which runs a number of offset presses, and Monterotondo (Rome), which runs digital printing systems and binding equipment."]
["Large Format Review","Student inspired by visit to North Print & Pack","2013-07-10","Internet","News Web Sites","2013-06-20",3906,14,"USD",14,"USD","Screen","Digital Inkjet Presses and Components","United Kingdom",{"$f":"HYPERLINK(\"http://largeformatreview.com/business-news/4081-student-inspired-by-visit-to-north-print-a-pack-and-wins-an-ipad-mini\")","v":"http://largeformatreview.com/business-news/4081-student-inspired-by-visit-to-north-print-a-pack-and-wins-an-ipad-mini"},null,"This text has been removed due to copyright restrictions."]
["Print Monthly","PrintMonthly","2013-07-10","Internet","Online Print Version","2013-04-12",null,571.6,"USD",571.6,"USD","Xerox; Heidelberg","Digital Inkjet Presses and Components","United Kingdom",{"$f":"HYPERLINK(\"http://www.printmonthly.co.uk/NewsStory.aspx?i=1448\")","v":"http://www.printmonthly.co.uk/NewsStory.aspx?i=1448"},null,"Two colour offset work is driving sales in the B3 market for companies such as PrintWorks North Mind the gap With so much coverage dedicated to new all singing and dancing litho and digital launches, not to mention Benny Landa’s nanography, it is easy to overlook to the role of the unsung workhorses of the print production market, B3 presses. We could be forgiven for thinking that the key to success is the latest, high-spec press, brimming with software and cloud technology. Of course, for some, such an investment will be business transforming. However, for the majority of small- to medium-sized commercial printers who need to competitively offer a wider range of services under one roof and just as easily and profitably handle long and short runs, the capability far surpasses their day-to-day requirements. For them, a significant return on investment can be achieved with an affordable addition that reduces the need for outsourcing, cuts turnaround times, and offers greater flexibility. Delivering quicker ROI Bob Usher, managing director of Apex Digital Graphics, UK Ryobi distributor and Konic Minolta partner says that as the print industry continues to change at a rapid pace, small offset printing is still the most effective way of producing virtually any run length of full-colour print “Litho may not grab headlines the way alternative technologies do, but the overwhelming majority of print is still produced using tried and tested litho technology, even in the B3 format where competition with digital is at its keenest,” comments Graham Moorby, joint managing director of Printers Superstore, supplier of Hans Grohni presses. He adds: “Our success with Hans Gronhi presses proves that if B3 offset machines can strike the right balance between low investment cost and high quality, while maintaining productivity and technology levels, we can compete against machinery on all production platforms, with a quicker ROI and lower cost per sheet.” Litho may not grab headlines the way alternative technologies do, but the overwhelming majority of print is still produced using tried and tested litho technology” Bob Usher, managing director of Apex Digital Graphics, UK Ryobi distributor and Konica Minolta partner, agrees: “While the print industry continues to change at a rapid pace, small offset printing is still the most effective way of producing virtually any run length of full-colour print from 250 copies with a static image.” He continues: “Since announcing details of our partnership with Konica Minolta at the beginning of the year, Apex now sit very comfortably in both digital and offset camps; we therefore have no particular axe to grind regarding technologies. Generally, our recommendation to printing companies that regularly handle colour production runs in excess of 250 copies of A3 or A4 work would still be to focus on a B3 offset press , rather than venturing into the digital world. Quality, speed, and price all come into the equation and offset is still very hard to beat in all three areas.” Falling crossover points Graham Moorby, joint managing director of Printers Superstore, believes Hans Gronhi presses prove B3 offset machines can strike the right balance between low investment cost and high quality A few years ago offering the two extremes in run lengths would have invariably required a B2 litho press and a digital engine because of the higher crossover point in the two print technologies. The result would have been a gap in the middle where neither could produce the work economically but turning the job down could result in the loss of a key account. Despite the fact that technological developments in both fields have worked towards closing the gaps, the strengths of B3 presses have still been coming under closer scrutiny from companies, such as Walsall firm Spectrum Birches Print and Design, because of their ability to competitively handle mid-length runs. Spectrum first invested in digital print in 2006, and much of the company’s short-run small-format print is now produced on a Xerox 700. Longer runs are handled by a five colour B2 Sakurai press. The niche in between these production methods was earmarked for investment when an ageing four colour GTO 52 press was up for replacement. Generally, our recommendation to printing companies that regularly handle colour production runs in excess of 250 copies would still be to focus on a B3 offset press” “We needed a more modern B3 press which would ease the pressure on both our B2 five colour and digital machine,” says Spectrum’s director, Dan Martin. “Run lengths are shrinking in the B2 format so it made sense to buy a five colour B3, as much of the work is suited to the smaller size. We have several customers with special colour requirements, but also it’s essential to have a sealer unit to help quickly dry short-run work. When it came to easing the pressure on our digital press, it was clear we needed an automated machine with all the latest whistles and bells in order to turn work around quickly.” Joint managing director Andrew Holmes adds: “Nowadays when people buy print they aren’t so concerned about how it was produced, they just want it on time, at the right price, at the right quality. Colprint replaced two Heidelberg presses with a Printers Superstore supplied two-colour Hans Gronhi GH522NP “Our Hans Gronhi press is producing clean, consistent print which is sellable. The fact that it’s a relative newcomer, and built in China, is not important – what counts is that it works, and it makes us profitable.” As a result Holmes is optimistic, not just for his company, but for the future of print: “We see ourselves as a visual communications company and we offer our clients the widest possible range of services. For a period e-commerce looked like it was going to take over, but there is a rebalancing going on, and we see people coming back to print as an essential part of the marketing mix.” Two’s company Spectrum Birches Print and Design chose a B3 Hans Grohni to fill a niche gap between digital and B2 work Another segment that is underpinning sales in this sector is two-colour offset work, as PrintWorks North, Wetherby, is finding. Just six months on from the installation of a B3 five-colour Ryobi 524GE, the firm has added a two-colour B3 Ryobi 522HE. Paul Johnson, managing director explains that in addition to the continued increase in the amount of four-colour print, there is still a significant amount of straight black and spot-colour print: “Not everything requires four-colours! It was an obvious decision to add more two-colour capacity.” Sales and marketing director, Ben Johnson, adds: “The two-colour Ryobi gives us significantly faster print production, with a maximum speed of 11,000 sheets per hour, and the quality of print that we have come to expect from Ryobi machinery. Adding this machine frees up the five-colour Ryobi to print more of what it was intended for.” Run lengths are shrinking in the B2 format, so it made sense to buy a five colour B3, as much of the work is suited to the smaller size” Birmingham’s Colprint is experiencing a similar trend as managing director, Stuart Mills, explains: “We keep expecting the two colour market to die out, but it shows no sign of slowing down. Perhaps we’re picking up work other printers are no longer interested in, or perhaps because of the economic climate there are fewer two colour printers out there.” Colprint recently replaced two Heidelberg presses with a two-colour Hans Gronhi GH522NP from Printers Superstore, as Mills explains: “We wanted a more modern, automated type of press but at first we thought we would have to buy a used machine. We were amazed to find that we could get a new Hans Gronhi two colour for around the same price as a five or six year old equivalent from another manufacturer. At first we were sceptical, but once we had seen the press in action and spoken to some other local users we were convinced. “It’s a price driven market, and this is why the Hans Gronhi press is such a good buy—the low investment and low running costs help us stay competitive, and we didn’t have to compromise on quality. We would be happy to put full colour jobs through it as backup for our five colour.” Flexpress has chosen a B3 Ryobi 524GX to handle stationery and short run brochure work Flexpress in Leicester has also invested in B3 with a Ryobi 524GX. It will handle stationery and short-run brochure work requirements, freeing up an existing B2 Ryobi 785E for periodicals and publications. The operation currently has 30 percent of its business coming from trade press clients, with many stipulating the litho process for their work. Of course we shouldn’t ignore what nanography could bring to the market with the 11,000sph B3 Landa S5 offering up to eight colours and perfecting. It is expected to be a high-speed, low-cost-per page solution for a wide range of general mainstream commercial applications. But we will have to wait a few more months before we see any further details on the print quality achievable. Clever alternatives Other market available technologies in this arena include KBA’s smallest litho press, the Genius 52 UV, now with an optional envelope feeder and split-colour printing capability. It produces eco-friendly waterless UV printing on a wide range of substrates, including film. Plate changes are completed within five minutes and run up takes just ten sheets of waste. Then there is Heidelberg’s SX series launched last year as well as the SpeedMaster conventional and anilox options, Komori’s Lithorone 20 with a pre-inking and de-inking system, to minimize the time to final printing and manroland’s ROLAND 50 equipped with double-size printing cylinders, EPL(Ergonomic Plate Loading) and integrated Presspilot. Not everything requires four-colours. It was an obvious decision to add more two-colour capacity” DI presses, such as Presstek’s 52DI, could also answer some sector specific questions. They combine quick make-readies, fast turnaround and compact size with an all-in one solution. Integrated platemaking speeds up productivity and only requires one operator to complete the push-button process—ideal for digital print operations looking to move into higher volume litho print. Screen’s Truepress 344 A3 four-colour digital offset press uses the latest processless thermal plates, which do not require chemical processing and the new innovative ‘multi array laser diode’ imaging head that can expose four printing plates simultaneously. B3 horizons It is clear that demand for B3 work continues to be strong and as such there will remain a healthy market for print room solutions that can handle the vibrant mix required by today’s fast-moving market. The very fact that there is so much choice on offer and the technology continues to evolve, seeing strong investment from manufacturers, is proof enough of its solidity. That said, it is also important that an investment in new B3 equipment be made after a wider appraisal of where demand in the market is going and how such kit can form part of a profitable product and services portfolio."]
["Print & Produktion","Wirtschaft / Personalien - Print & Produktion","2013-07-10","Internet","Online Print Version","2013-04-19",2051,14,"USD",14,"USD","HP; Kodak; Oce; Screen; Xerox; Canon; Agfa; Heidelberg","Digital Inkjet Presses and Components","Germany",{"$f":"HYPERLINK(\"http://www.print-produktion.net/berichte/wirtschaft-personalien/\")","v":"http://www.print-produktion.net/berichte/wirtschaft-personalien/"},null,"This text has been removed due to copyright restrictions."]
["Presse Box","Zebra Technologies stellt den High Performance Desktopdrucker GT800 vor - Zebra Technologies Europe Limited","2013-07-10","Internet","News Web Sites","2013-04-11",150000,48.73,"USD",48.73,"USD","Kodak","Digital Inkjet Presses and Components","Germany",{"$f":"HYPERLINK(\"http://www.pressebox.de/inaktiv/zebra-technologies-europe-limited/Zebra-Technologies-stellt-den-High-Performance-Desktopdrucker-GT800-vor/boxid/587604\")","v":"http://www.pressebox.de/inaktiv/zebra-technologies-europe-limited/Zebra-Technologies-stellt-den-High-Performance-Desktopdrucker-GT800-vor/boxid/587604"},null,"This text has been removed due to copyright restrictions."]
["Graphic Repro On-line","Kodak Prosper personalises flyers, brochures and magazines","2013-07-10","Internet","Online Print Version","2013-06-18",null,252.32,"USD",252.32,"USD","Kodak","Digital Inkjet Presses and Components","South Africa",{"$f":"HYPERLINK(\"http://www.graphicrepro.co.za/asp/news_long.asp?nid=21733\")","v":"http://www.graphicrepro.co.za/asp/news_long.asp?nid=21733"},null,"This text has been removed due to copyright restrictions."]
["MyPrintResource.com","Rhotex 322 from Durst Image Technology US, LLC","2013-07-10","Internet","News Web Sites","2013-06-21",333797,330.65,"USD",330.65,"USD","Oce; Screen; Canon","Digital Inkjet Presses and Components","United States of America",{"$f":"HYPERLINK(\"http://printingnews.com/product/10975237/durst-image-technology-us-llc-rhotex-322\")","v":"http://printingnews.com/product/10975237/durst-image-technology-us-llc-rhotex-322"},null,"This text has been removed due to copyright restrictions."]
["World of Print online","World of Print: News","2013-07-10","Internet","Online Print Version","2013-04-12",2051,14,"USD",14,"USD","Kodak","Digital Inkjet Presses and Components","Germany",{"$f":"HYPERLINK(\"http://www.worldofprint.de/meldung2.php?NID=10154780\")","v":"http://www.worldofprint.de/meldung2.php?NID=10154780"},null,"This text has been removed due to copyright restrictions."]
["Presse Box","Kodak helps Mediagraf Produce Customised Print with the KODAK Prosper S20 Imprinting System - Kodak GmbH","2013-07-10","Internet","News Web Sites","2013-06-11",150000,119.88,"USD",119.88,"USD","Kodak","Digital Inkjet Presses and Components","Germany",{"$f":"HYPERLINK(\"http://www.pressebox.de/inaktiv/kodak-gmbh/Kodak-helps-Mediagraf-Produce-Customised-Print-with-the-KODAK-Prosper-S20-Imprinting-System/boxid/602645\")","v":"http://www.pressebox.de/inaktiv/kodak-gmbh/Kodak-helps-Mediagraf-Produce-Customised-Print-with-the-KODAK-Prosper-S20-Imprinting-System/boxid/602645"},null,"This text has been removed due to copyright restrictions."]
["prepressworld.de","Um auf den Wandel im Buchverlagswesen richtig zu reagieren, hat die Gruppe ihr Geschäftsmodell verändert","2013-07-10","Internet","Online Print Version","2013-04-12",4102,14,"USD",14,"USD","Kodak","Digital Inkjet Presses and Components","Germany",{"$f":"HYPERLINK(\"http://www.prepressworld.de/meldung2.php?NID=10154780\")","v":"http://www.prepressworld.de/meldung2.php?NID=10154780"},null,"This text has been removed due to copyright restrictions."]
["Print-publishing","Országos ink-jet-modell","2013-07-10","Internet","Online Print Version","2013-04-23",2848,14,"USD",14,"USD","Kodak","Digital Inkjet Presses and Components","Hungary",{"$f":"HYPERLINK(\"http://www.print-publishing.hu/index.php/akt/nyomda/5634-orszagos-ink-jet-modell.html\")","v":"http://www.print-publishing.hu/index.php/akt/nyomda/5634-orszagos-ink-jet-modell.html"},null,"This text has been removed due to copyright restrictions."]
["Print Forum","KBA ?????????? ???????????? ???????? ????? ?????????? ????????? ????? ????????? ?????? ???????? ?????? —","2013-07-10","Internet","Online Print Version","2013-04-12",46667,14,"USD",14,"USD","Kodak","Digital Inkjet Presses and Components","Russia",{"$f":"HYPERLINK(\"http://www.print-forum.ru/news/52698.html\")","v":"http://www.print-forum.ru/news/52698.html"},null,"This text has been removed due to copyright restrictions."]
["Graphic Repro On-line","KBA retrofits inkjet systems to newspaper presses","2013-07-10","Internet","Online Print Version","2013-04-11",null,68.84,"USD",68.84,"USD","Kodak","Digital Inkjet Presses and Components","South Africa",{"$f":"HYPERLINK(\"http://www.graphicrepro.co.za/asp/news_long.asp?nid=21419\")","v":"http://www.graphicrepro.co.za/asp/news_long.asp?nid=21419"},null,"This text has been removed due to copyright restrictions."]
["Printing","Color Inkjet","2013-07-10","Internet","Blogs","2013-06-11",null,170.7,"USD",170.7,"USD","HP; Canon","Digital Inkjet Presses and Components","United States of America",{"$f":"HYPERLINK(\"http://ct.moreover.com/ct?haid=a912d5979ca839f61370976952707761b3e23caab460b&amp;co=f000000009816s-1158206718\")","v":"http://ct.moreover.com/ct?haid=a912d5979ca839f61370976952707761b3e23caab460b&amp;co=f000000009816s-1158206718"},null,"This text has been removed due to copyright restrictions."]
["Presse Box","deus.com.de stellt den neuen Zebra GT800 vor - DEUS GmbH","2013-07-10","Internet","News Web Sites","2013-04-11",150000,24.83,"USD",24.83,"USD","Kodak","Digital Inkjet Presses and Components","Germany",{"$f":"HYPERLINK(\"http://www.pressebox.de/inaktiv/deus-gmbh/deuscomde-stellt-den-neuen-Zebra-GT800-vor/boxid/587648\")","v":"http://www.pressebox.de/inaktiv/deus-gmbh/deuscomde-stellt-den-neuen-Zebra-GT800-vor/boxid/587648"},null,"This text has been removed due to copyright restrictions."]
["Industriagraficaonline.com","Kodak helps Mediagraf produce customised print with the KODAK Prosper S20","2013-07-10","Internet","News Web Sites","2013-06-17",121,14,"USD",14,"USD","Kodak","Digital Inkjet Presses and Components","Spain",{"$f":"HYPERLINK(\"http://www.industriagraficaonline.com/index.php?id=8684\")","v":"http://www.industriagraficaonline.com/index.php?id=8684"},null,"This text has been removed due to copyright restrictions."]
["Knack Grafisch Nieuws","Prosper-koppen voor krantenpersen van KBA","2013-07-10","Internet","News Web Sites","2013-04-15",560745,123.27,"USD",123.27,"USD","Kodak","Digital Inkjet Presses and Components","Belgium",{"$f":"HYPERLINK(\"http://grafisch-nieuws.knack.be/nieuws/nieuws/prosper-koppen-voor-krantenpersen-van-kba/article-4000280325598.htm\")","v":"http://grafisch-nieuws.knack.be/nieuws/nieuws/prosper-koppen-voor-krantenpersen-van-kba/article-4000280325598.htm"},null,"15/04/2013 - 00:00 \n  KBA biedt vanaf nu de mogelijkheid om de inkjetkoppen Prosper van Kodak in bestaande krantenpersen te integreren. Op het moment worden er in verschillende vestigingen van de drukker Axel Springer (Duitsland) koppen geïnstalleerd. Voor de zomer worden ze in gebruik genomen. \n  KBA ziet de integratie van inkjetkoppen als een kans voor krantendrukkers die variabele gegevens willen opnemen, bijv. om doelgerichte advertenties, promoties of zelfs nieuwtjes heet van de naald, zoals sportuitslagen, te drukken, terwijl de productie al begonnen is. Volgens de constructeur is er in de hele wereld nog een groot aantal rotatiepersen (KBA Journal, Colora, Express of Commander) in gebruik die nog altijd een hoogwaardige kwaliteit leveren, maar die niet meer tegemoet komen aan de vereiste van korte insteltijden die bij kleine oplagen nodig zijn. Wanneer die persen van inkjetkoppen voorzien worden, worden ze opnieuw concurrerend, bijv. doordat regionale pagina’s gedrukt kunnen worden zonder dat het nodig is om platen te wisselen. \n  Voor zulke toepassingen stelt KBA nu voor om de koppen Prosper S30 van Kodak te integreren. Die koppen die een snelheid van 900 m/min kunnen halen, hebben een drukbreedte van 105,6 mm en een resolutie van 600 x 200 dpi. \n  Axel Springer heeft onlangs koppen van een dergelijk type op verscheidene manroland rotatiepersen gemonteerd en de persgroep wil het systeem in al haar vestigingen in Duitsland invoeren – ook op de rotatiepersen van KBA. \n  publiceert in zijn nummer van april een groot artikel over de hybride offset en de digitale druk."]
["Graphic Repro On-line","Kodak and St Ives in exclusive five-year contract","2013-07-10","Internet","Online Print Version","2013-06-19",null,227.71,"USD",227.71,"USD","Kodak","Digital Inkjet Presses and Components","South Africa",{"$f":"HYPERLINK(\"http://www.graphicrepro.co.za/asp/news_long.asp?nid=21740\")","v":"http://www.graphicrepro.co.za/asp/news_long.asp?nid=21740"},null,"This text has been removed due to copyright restrictions."]
["Print & Produktion","Nachrichten - Print & Produktion","2013-07-10","Internet","Online Print Version","2013-04-27",2051,14,"USD",14,"USD","Screen; Xerox","Digital Inkjet Presses and Components","Germany",{"$f":"HYPERLINK(\"http://www.print-und-produktion.de/nachrichten/browse/7/\")","v":"http://www.print-und-produktion.de/nachrichten/browse/7/"},null,"This text has been removed due to copyright restrictions."]
["Individual.com","Individual.com","2013-07-10","Internet","News Web Sites","2013-06-13",30104,19.21,"USD",19.21,"USD","Kodak","Digital Inkjet Presses and Components","United States of America",{"$f":"HYPERLINK(\"http://www.individual.com/storyrss.php?story=177378681&hash=412f7900ddb327ef5b32f61c0a1d26dc\")","v":"http://www.individual.com/storyrss.php?story=177378681&hash=412f7900ddb327ef5b32f61c0a1d26dc"},null,"This text has been removed due to copyright restrictions."]
["CSN Copy Shop News","Quick Print Pro - The Original Copy And Instant Print Trade And Industry Journal","2013-07-10","Internet","Online Print Version","2013-05-13",null,984.03,"USD",984.03,"USD","Screen; Xeikon","Digital Inkjet Presses and Components","United Kingdom",{"$f":"HYPERLINK(\"http://copyshopnews.co.uk/display_article.aspx?OBJ_ID=5487153\")","v":"http://copyshopnews.co.uk/display_article.aspx?OBJ_ID=5487153"},null,"This text has been removed due to copyright restrictions."]
["Benzinga","St Ives Places Full Confidence in KODAK Plates and Ink Technology","2013-07-10","Internet","News Web Sites","2013-06-12",449506,308.45,"USD",308.45,"USD","Kodak","Digital Inkjet Presses and Components","United States of America",{"$f":"HYPERLINK(\"http://www.benzinga.com/pressreleases/13/06/b3661875/st-ives-places-full-confidence-in-kodak-plates-and-ink-technology\")","v":"http://www.benzinga.com/pressreleases/13/06/b3661875/st-ives-places-full-confidence-in-kodak-plates-and-ink-technology"},null,"This text has been removed due to copyright restrictions."]
["polimag","??????? ???????? | polimag.ru","2013-07-10","Internet","News Web Sites","2013-04-15",null,108.71,"USD",108.71,"USD","Kodak; Oce","Digital Inkjet Presses and Components","Russia",{"$f":"HYPERLINK(\"http://www.polimag.ru/?PHPSESSID=245a9abb8d715bf2b803080d83f63f6a\")","v":"http://www.polimag.ru/?PHPSESSID=245a9abb8d715bf2b803080d83f63f6a"},null,"This text has been removed due to copyright restrictions."]
["Printernet","Recepta na sukces. Jolanta Kurowiak i Tadeusz Figurski o biznesie.","2013-07-10","Internet","Online Print Version","2013-05-17",null,615.21,"USD",615.21,"USD","Screen","Digital Inkjet Presses and Components","Austria",{"$f":"HYPERLINK(\"http://www.printernet.pl/pg/pl/rozmowa/recepta_na_sukces_jolanta.html\")","v":"http://www.printernet.pl/pg/pl/rozmowa/recepta_na_sukces_jolanta.html"},null,"This text has been removed due to copyright restrictions."]
["IP PBX Community","Dainippon Screen Develops Wide-Format UV Inkjet Printing System for Sign and Display Industry","2013-07-10","Internet","News Web Sites","2013-06-25",null,45.79,"USD",45.79,"USD","Screen","Digital Inkjet Presses and Components","United States of America",{"$f":"HYPERLINK(\"http://technews.tmcnet.com/news/2013/06/25/7228729.htm\")","v":"http://technews.tmcnet.com/news/2013/06/25/7228729.htm"},null,"This text has been removed due to copyright restrictions."]
["Druckspiegel","Der Druckspiegel - News","2013-07-10","Internet","Online Print Version","2013-04-11",24610,17.760000000000002,"USD",17.760000000000002,"USD","Kodak","Digital Inkjet Presses and Components","Germany",{"$f":"HYPERLINK(\"http://www.druckspiegel.de/Home/News/3184\")","v":"http://www.druckspiegel.de/Home/News/3184"},null,"This text has been removed due to copyright restrictions."]
["alabrent.com","Kodak demuestra en una jornada por qu? Flexcel NX ha revolucionado la impresi?n flexo","2013-07-10","Internet","Online Print Version","2013-05-15",3879,14,"USD",14,"USD","Kodak","Digital Inkjet Presses and Components","Spain",{"$f":"HYPERLINK(\"http://www.alabrent.com/news.php?id=22058\")","v":"http://www.alabrent.com/news.php?id=22058"},null,"This text has been removed due to copyright restrictions."]
["Printing Impressions","Printer Adds First Screen Truepress JetSX Sheetfed Inkjet Press in North America","2013-07-10","Internet","Online Print Version","2013-06-24",7374,14,"USD",14,"USD","Screen; Heidelberg","Digital Inkjet Presses and Components","United States of America",{"$f":"HYPERLINK(\"http://www.piworld.com/article/foremost-communications-installs-first-screen-truepress-jetsx-press-in-us/1\")","v":"http://www.piworld.com/article/foremost-communications-installs-first-screen-truepress-jetsx-press-in-us/1"},null,"This text has been removed due to copyright restrictions."]
["Stampa Media","KBA offre la possibilità di retrofit inkjet per le rotative per quotidiani","2013-07-10","Internet","News Web Sites","2013-04-17",182,14,"USD",14,"USD","Kodak","Digital Inkjet Presses and Components","Italy",{"$f":"HYPERLINK(\"http://www.stampamedia.net/it/notizie/fornitori/kba-offre-la-possibilit%C3%A0-di-retrofit-inkjet-per-le-rotative-per-quotidiani\")","v":"http://www.stampamedia.net/it/notizie/fornitori/kba-offre-la-possibilit%C3%A0-di-retrofit-inkjet-per-le-rotative-per-quotidiani"},null,"A Drupa ’95, quindi 18 anni fa, KBA presentò per la prima volta una macchina per quotidiani con teste inkjet di Scitex Digital Printing, la società di Dayton, in Ohio, poi acquisita da Kodak. Nel frattempo la stampa inkjet ha fatto grandi passi avanti e KBA ha messo a punto la RotaJET 76, presentata alla scorsa Drupa e recentemente agli Hunkeler Innovationdays a Lucerna, in Svizzera. Inoltre, KBA oggi offre l’ultima generazione di teste inkjet in collaborazione con Kodak. Tra queste degna di nota è la Prosper S30, in grado di sovrastampare dati variabili su una bobina a una velocità massima di 15 m/sec. a una risoluzione di 600x200 dpi. Per l’esattezza, KBA propone agli utilizzatori di “vecchie” rotative per quotidiani, come la KBA Journal, Colora Express e Commander, l’aggiunta di teste inkjet in modo da poter personalizzare i contenuti, come nel caso ad esempio di sezioni regionali, che solitamente non occupano più di quattro o sei pagine del quotidiano. KBA integra le teste inkjet di Kodak nella struttura della rotativa con una videocamera per il controllo del registro e un dispositivo in grado di posizionare in modo esatto la testa di stampa rispetto alla banda di carta. Sono attualmente in fase di installazione 11 sistemi inkjet Kodak Prosper su macchine KBA presso 7 stabilimenti del gruppo tedesco Axel Springer. L'intallazione dovrebbe essere ultimata entro l'inizio dell'estate."]
["Mail Print Blog","5 AMBIT Awards Validate Mail Print’s Work is as Good as Gold","2013-07-10","Internet","Blogs","2013-05-14",null,174.13,"USD",174.13,"USD","HP","Digital Inkjet Presses and Components","United States of America",{"$f":"HYPERLINK(\"http://ct.moreover.com/ct?haid=996babf626ce82601368599584666f8a8fb49d8e04de4&amp;co=f000000009816s-1158206718\")","v":"http://ct.moreover.com/ct?haid=996babf626ce82601368599584666f8a8fb49d8e04de4&amp;co=f000000009816s-1158206718"},null,"This text has been removed due to copyright restrictions."]
["PrintPerfection","PrintPerfection > News > 100 Prozent Digitaldruck von Büchern","2013-07-10","Internet","Online Print Version","2013-04-15",4102,14,"USD",14,"USD","Kodak","Digital Inkjet Presses and Components","Germany",{"$f":"HYPERLINK(\"http://www.printperfection.de/news/3319\")","v":"http://www.printperfection.de/news/3319"},null,"This text has been removed due to copyright restrictions."]
["PrintPerfection","PrintPerfection > News > 100 Prozent Digitaldruck von Büchern","2013-07-10","Internet","Online Print Version","2013-04-17",4102,14,"USD",14,"USD","Kodak","Digital Inkjet Presses and Components","Germany",{"$f":"HYPERLINK(\"http://www.printperfection.de/news/3319\")","v":"http://www.printperfection.de/news/3319"},null,"This text has been removed due to copyright restrictions."]
["Metaprintart.info","Volantini personalizzati per uscire dal coro","2013-07-10","Internet","News Web Sites","2013-05-23",1030,14,"USD",14,"USD","Kodak","Digital Inkjet Presses and Components","Italy",{"$f":"HYPERLINK(\"http://www.metaprintart.info/mercati/9544-volantini-personalizzati-per-uscire-dal-coro/\")","v":"http://www.metaprintart.info/mercati/9544-volantini-personalizzati-per-uscire-dal-coro/"},null,"L’attività di Mediagraf SpA nasce nel 1988 con la denominazione Editrice Grafiche Messaggero Padova srl, a seguito del conferimento delle attività grafiche della Provincia Padovana dei Frati Minori Conventuali (la tipografia che stampava il Messaggero di Sant’Antonio) e della Diocesi di Padova. Nel 1990 anche la Conferenza Episcopale Italiana (CEI) è entrata a far parte della compagine sociale. Attualmente la società è partecipata dai tre Enti secondo queste percentuali: Provincia Padovana dei Frati Minori Conventuali 45%; Diocesi di Padova 30% e CEI 25%. Mediagraf è una società sana e in attivo, con un fatturato nel 2011 di 70 milioni di euro, cui hanno contribuito 170 dipendenti suddivisi tra la sede di Noventa Padovana (PD), dove sono operative una Compacta 818 KBA 64 pagine, una KBA Compacta 618 48 pagine, una Lithoman 32 pagine e una Rotoman 16 pagine, e Monterotondo (Roma), dove ci sono sistemi di stampa digitale e attrezzature per legatoria. Mediagraf adotta pannelli fotovoltaici per i fabbisogni energetici dello stabilimento Mediagraf offre servizi di comunicazione integrata per soddisfare al meglio le esigenze dei clienti e la sua tipologia produttiva è suddivisa in 35% stampati commerciali per la GDO; 30% editoria laica e cattolica; 35% editoria dei servizi. Mediagraf è divenuta anche fucina di creatività come spiega Fabio Fogarin, Direttore Acquisti, Logistica e Sistemi Informativi: negli ultimi anni abbiamo attivato nuovi progetti per avvicinarci alla comunicazione non solo stampata ma anche alla multimedialità per fornire ai clienti altre opportunità. Dal 2011 è attivo Mediagraf lab, un ambiente aperto a giovani professionisti in co-working che condividono idee, capacità ed esperienze per sviluppare insieme progetti di comunicazione, marketing strategico. Qui è possibile tradurre la comunicazione cartacea in app, editoria digitale multimediale e siti web. Da qualche anno Mediagraf ha iniziato una collaborazione con l’Università di Parma, con la quale ha cercato di incentivare l’utilizzo del volantino. Per comprendere bene l’importanza di questo mezzo di comunicazione, che viene distribuito in miliardi di copie in Italia, basti qualche dato: la percentuale delle vendite in promozione ha raggiunto a dicembre 2012 il 28,6% nei supermercati e il 33,9% negli ipermercati. I volantini hanno accompagnato e contribuito alla crescita delle vendite in promozione aumentando del 4,6% la numerica delle campagne promozionali e addirittura del 11,5% le singole versioni prodotte. Si rivolgono a bacini di utenza sempre più circoscritti e si specializzano in tematiche di settore. Il secondo convegno sul volantino, sponsorizzato anche da Mediagraf e svoltosi a Parma il 19 aprile 2012 ha esplorato le nuove frontiere del volantino sul piano distributivo, di ampliamento degli obiettivi e di misurazione della performance della promozioni. A questo proposito afferma Fogarin: Il volantino non può più essere una forma di comunicazione di massa, ma deve essere personalizzato e noi, in quanto azienda di stampa, abbiano subito cercato una tecnologia per mettere in pratica questa esigenza del marketing. E la risposta, dopo un tentativo poco felice di personalizzare gli stampati fuori linea, è stato il sistema Kodak Prosper S20 Imprinting System, che combina la stampa roto-offset con dati variabili al 100% su pagina parziale. Basato sulla tecnologia Kodak Stream Inkjet, il sistema Prosper S20 Imprinting ha un’ampiezza di stampa di 10,6 cm con velocità fino a 600 m/min e risoluzione di 600×300 dpi. L’area di stampa può essere messa in orizzontale o in verticale. In questo modo l’integrazione tra la velocità e l’efficienza della stampa roto-offset e la personalizzazione digitale a dati variabili è perfetta. Il sistema utilizza inchiostri a base di pigmenti che offrono eccellenti livelli di persistenza, neri intensi e notevole resistenza ai graffi e all’acqua su un’ampia gamma di supporti commerciali. Davide Dei Rossi, direttore Attività Industriali di Mediagraf spiega: Il sistema è entrato in produzione nel gennaio 2013 installato su una KBA Compacta 618, e il bilancio è assolutamente positivo. Avevamo bisogno di una soluzione non penalizzante per la rotativa, e così è stato, dato che la velocità delle teste Kodak è in linea con la rotativa. Possiamo stampare testi, foto, codici a barre e alfanumerici, codici QR e molto altro con un ottima qualità di stampa su volantini GDO, riviste autocopertinate, prodotti editoriali e stampati di varia natura utilizzando carta News, BC e LWC. Inoltre per certificare i dati variabili stampati abbiamo installato una camera che può certificare codici a barre EAN8, e EAN13, Datamatrix, codici QR. Esempi di stampa a dati variabili Il mercato sta rispondendo bene a queste opportunità, infatti Mediagraf ha già stampato molte commesse sfruttando le teste Kodak, che sono divenute uno stimolo e motivo d’interesse da parte di clienti già acquisiti e nuovi. Innegabilmente anche Mediagraf ha risentito della crisi, che però è stata vissuta come un’opportunità per cambiare il nostro modo di operare, in linea con la nostra filosofia aziendale volta al rinnovamento tecnologico continuo e all’apertura a nuove opportunità , afferma Fogarin. Dei Rossi conclude citando altri plus dell’azienda: Nell’aprile 2011 è entrato in funzione un impianto fotovoltaico posizionato sulla copertura dello stabile, con una potenza di 1500.03 kWp derivante da 7143 pannelli. Inoltre siamo certificati FSC e PEFC; nel 2010 abbiamo ottenuto la certificazione ambientale ISO 14001 e EMAS. La società dispone anche di un sistema di gestione per la salute e sicurezza nei luoghi di lavoro conforme alla norma OHSAS 18001:2007. 86 persone hanno visto questo articolo."]
["Document Wereld","Jetmail 25 jaar","2013-07-10","Internet","Online Print Version","2013-06-21",null,58.56,"USD",58.56,"USD","Oce; Canon","Digital Inkjet Presses and Components","Netherlands",{"$f":"HYPERLINK(\"http://www.documentwereld.nl/nieuws/1/8378-jetmail_25_jaar\")","v":"http://www.documentwereld.nl/nieuws/1/8378-jetmail_25_jaar"},null,"This text has been removed due to copyright restrictions."]
["PrintPerfection","PrintPerfection > News > 100 Prozent Digitaldruck von Büchern","2013-07-10","Internet","Online Print Version","2013-04-16",4102,14,"USD",14,"USD","Kodak","Digital Inkjet Presses and Components","Germany",{"$f":"HYPERLINK(\"http://www.printperfection.de/news/3319\")","v":"http://www.printperfection.de/news/3319"},null,"This text has been removed due to copyright restrictions."]
["Yahoo! India","Dainippon Screen Develops Wide-Format UV Inkjet Printing System for Sign and Display Industry","2013-07-10","Internet","News Web Sites","2013-06-25",188310,116.14,"USD",116.14,"USD","Screen","Digital Inkjet Presses and Components","India",{"$f":"HYPERLINK(\"http://in.finance.yahoo.com/news/dainippon-screen-develops-wide-format-080000280.html\")","v":"http://in.finance.yahoo.com/news/dainippon-screen-develops-wide-format-080000280.html"},null,"This text has been removed due to copyright restrictions."]
["Print & Produktion","Wirtschaft / Personalien - Print & Produktion","2013-07-10","Internet","Online Print Version","2013-05-21",2051,14,"USD",14,"USD","HP; Kodak; Oce; Screen; Xerox; Canon; Agfa; Heidelberg","Digital Inkjet Presses and Components","Germany",{"$f":"HYPERLINK(\"http://www.print-produktion.net/berichte/wirtschaft-personalien/\")","v":"http://www.print-produktion.net/berichte/wirtschaft-personalien/"},null,"This text has been removed due to copyright restrictions."]
["f-mp.de","100 Prozent Digitaldruck von Büchern","2013-07-10","Internet","Online Print Version","2013-04-15",10254,14,"USD",14,"USD","Kodak","Digital Inkjet Presses and Components","Germany",{"$f":"HYPERLINK(\"http://www.f-mp.de/news/100-prozent-digitaldruck-von-buechern\")","v":"http://www.f-mp.de/news/100-prozent-digitaldruck-von-buechern"},null,"This text has been removed due to copyright restrictions."]
["Yahoo! Finance","Dainippon Screen Develops Wide-Format UV Inkjet Printing System for Sign and Display Industry","2013-07-10","Internet","News Web Sites","2013-06-25",23551520,14525.87,"USD",14525.87,"USD","Screen","Digital Inkjet Presses and Components","United States of America",{"$f":"HYPERLINK(\"http://finance.yahoo.com/news/dainippon-screen-develops-wide-format-080000280.html\")","v":"http://finance.yahoo.com/news/dainippon-screen-develops-wide-format-080000280.html"},null,"This text has been removed due to copyright restrictions."]
["Packaging Europe","High Quality Visitors at North Print & Pack 2013","2013-07-10","Internet","Online Print Version","2013-05-21",930,14,"USD",14,"USD","Screen; Xeikon","Digital Inkjet Presses and Components","United Kingdom",{"$f":"HYPERLINK(\"http://www.packagingeurope.com/Packaging-Europe-News/53333/High-Quality-Visitors-at-North-Print--Pack-2013-.html\")","v":"http://www.packagingeurope.com/Packaging-Europe-News/53333/High-Quality-Visitors-at-North-Print--Pack-2013-.html"},null,"This text has been removed due to copyright restrictions."]
["EON: Enhanced Online News","Dainippon Screen Develops Wide-Format UV Inkjet Printing System for Sign and Display Industry","2013-07-10","Internet","News Web Sites","2013-06-25",3120,14,"USD",14,"USD","Screen","Digital Inkjet Presses and Components","United States of America",{"$f":"HYPERLINK(\"http://eon.businesswire.com/news/eon/20130625005099/en/Dainippon-Screen-Develops-Wide-Format-UV-Inkjet-Printing\")","v":"http://eon.businesswire.com/news/eon/20130625005099/en/Dainippon-Screen-Develops-Wide-Format-UV-Inkjet-Printing"},null,"This text has been removed due to copyright restrictions."]
["Vidart","Portal branzy poligraficznej. Witamy!","2013-07-10","Internet","Online Print Version","2013-04-19",61,14,"USD",14,"USD","Oce","Digital Inkjet Presses and Components","Poland",{"$f":"HYPERLINK(\"http://vidart.com.pl/vidart_joomla/vidart/index.php?option=com_content&task=view&id=6364\")","v":"http://vidart.com.pl/vidart_joomla/vidart/index.php?option=com_content&task=view&id=6364"},null,"This text has been removed due to copyright restrictions."]
["polimag","??????? ???????? | polimag.ru","2013-07-10","Internet","News Web Sites","2013-04-29",null,106.53,"USD",106.53,"USD","Kodak; Oce","Digital Inkjet Presses and Components","Russia",{"$f":"HYPERLINK(\"http://www.polimag.ru/?PHPSESSID=559866b63b0f06abd503d40af494ef96\")","v":"http://www.polimag.ru/?PHPSESSID=559866b63b0f06abd503d40af494ef96"},null,"This text has been removed due to copyright restrictions."]
["BusinessWire.com","Dainippon Screen Develops Wide-Format UV Inkjet Printing System for Sign and Display Industry","2013-07-10","Internet","News Web Sites","2013-06-25",113032,69.010000000000005,"USD",69.010000000000005,"USD","Screen","Digital Inkjet Presses and Components","United States of America",{"$f":"HYPERLINK(\"http://www.businesswire.com/news/home/20130625005098/en/Dainippon-Screen-Develops-Wide-Format-UV-Inkjet-Printing\")","v":"http://www.businesswire.com/news/home/20130625005098/en/Dainippon-Screen-Develops-Wide-Format-UV-Inkjet-Printing"},null,"This text has been removed due to copyright restrictions."]
["Print Week","Screen to launch superfast UV digital label press","2013-07-10","Internet","Online Print Version","2013-06-19",150195,45.58,"USD",45.58,"USD","Screen","Digital Inkjet Presses and Components","United Kingdom",{"$f":"HYPERLINK(\"http://www.printweek.com//news/1186748/Screen-launch-superfast-UV-digital-label-press/\")","v":"http://www.printweek.com//news/1186748/Screen-launch-superfast-UV-digital-label-press/"},null,"This text has been removed due to copyright restrictions."]
["Blogs","North Print &amp; Pack 2013 packs a punch with high quality visitors","2013-07-10","Internet","Blogs","2013-05-20",null,454.48,"USD",454.48,"USD","Screen; Xeikon","Digital Inkjet Presses and Components","United States of America",{"$f":"HYPERLINK(\"http://ct.moreover.com/ct?haid=b5c00ef681caf1481369080057922c06be7d6a5d04ec3&amp;co=f000000009816s-1158206718\")","v":"http://ct.moreover.com/ct?haid=b5c00ef681caf1481369080057922c06be7d6a5d04ec3&amp;co=f000000009816s-1158206718"},null,"This text has been removed due to copyright restrictions."]
["Print & Paper Online","MPG Prospers with Kodak's help","2013-07-10","Internet","News Web Sites","2013-04-12",null,124.29,"USD",124.29,"USD","Kodak","Digital Inkjet Presses and Components","United Kingdom",{"$f":"HYPERLINK(\"http://www.paperandprint.com/digital-printer/news/dp-2013/april-2013/110413-kodak.aspx\")","v":"http://www.paperandprint.com/digital-printer/news/dp-2013/april-2013/110413-kodak.aspx"},null,"This text has been removed due to copyright restrictions."]
["NOODLS","Dainippon Screen Develops Wide-Format UV Inkjet Printing System for Sign and Display Industry — Screen Group Synergy Accelerates Expansion in Worldwide Market —","2013-07-10","Internet","News Web Sites","2013-06-25",1985,14,"USD",14,"USD","Screen","Digital Inkjet Presses and Components","United Kingdom",{"$f":"HYPERLINK(\"http://www.noodls.com/viewNoodl/19131092/dainippon-screen-mfg-co-ltd/dainippon-screen-develops-wide-format-uv-inkjet-printing-sys\")","v":"http://www.noodls.com/viewNoodl/19131092/dainippon-screen-mfg-co-ltd/dainippon-screen-develops-wide-format-uv-inkjet-printing-sys"},null,"This text has been removed due to copyright restrictions."]
["CSN Copy Shop News","Quick Print Pro - The Original Copy And Instant Print Trade And Industry Journal","2013-07-10","Internet","Online Print Version","2013-05-22",null,467.25,"USD",467.25,"USD","Screen; Xeikon","Digital Inkjet Presses and Components","United Kingdom",{"$f":"HYPERLINK(\"http://copyshopnews.co.uk/display_article.aspx?OBJ_ID=5489028\")","v":"http://copyshopnews.co.uk/display_article.aspx?OBJ_ID=5489028"},null,"This text has been removed due to copyright restrictions."]
["Presse Box","Die MPG Printgroup setzt bei der Produktion von Büchern in kleinen Auflagen auf KODAK Inkjet-Digitaldrucktechnologie - Kodak GmbH","2013-07-10","Internet","News Web Sites","2013-04-11",150000,116.28,"USD",116.28,"USD","Kodak","Digital Inkjet Presses and Components","Germany",{"$f":"HYPERLINK(\"http://www.pressebox.de/pressemitteilung/kodak-gmbh/Die-MPG-Printgroup-setzt-bei-der-Produktion-von-Buechern-in-kleinen-Auflagen-auf-KODAK-Inkjet-Digitaldrucktechnologie/boxid/587597\")","v":"http://www.pressebox.de/pressemitteilung/kodak-gmbh/Die-MPG-Printgroup-setzt-bei-der-Produktion-von-Buechern-in-kleinen-Auflagen-auf-KODAK-Inkjet-Digitaldrucktechnologie/boxid/587597"},null,"This text has been removed due to copyright restrictions."]
["Individual.com","Individual.com","2013-07-10","Internet","News Web Sites","2013-06-25",30104,19.91,"USD",19.91,"USD","Screen","Digital Inkjet Presses and Components","United States of America",{"$f":"HYPERLINK(\"http://www.individual.com/storyrss.php?story=177981709&hash=8f292c1081c6c01f8262a7d83a71129a\")","v":"http://www.individual.com/storyrss.php?story=177981709&hash=8f292c1081c6c01f8262a7d83a71129a"},null,"This text has been removed due to copyright restrictions."]
["IINews","Die MPG Printgroup setzt bei der Produktion von Büchern in kleinen Auflagen auf KODAK Inkjet-Digitaldrucktechnologie","2013-07-10","Internet","Online Print Version","2013-04-11",null,271.94,"USD",271.94,"USD","Kodak","Digital Inkjet Presses and Components","Germany",{"$f":"HYPERLINK(\"http://www.iinews.de/die-mpg-printgroup-setzt-bei-der-produktion-von-buechern-in-kleinen-auflagen-auf-kodak-inkjet-digitaldrucktechnologie-850897.html\")","v":"http://www.iinews.de/die-mpg-printgroup-setzt-bei-der-produktion-von-buechern-in-kleinen-auflagen-auf-kodak-inkjet-digitaldrucktechnologie-850897.html"},null,"This text has been removed due to copyright restrictions."]
["Druk Info","Polska Poligrafia | Prasa drukowana jeszcze blizej czytelnika dzieki najnowszej drukarce cyfrowej Océ ColorStream® 3900","2013-07-10","Internet","Online Print Version","2013-06-18",null,213.07,"USD",213.07,"USD","Oce; Canon","Digital Inkjet Presses and Components","Poland",{"$f":"HYPERLINK(\"http://druk.info.pl/art/prasa-drukowana-jeszcze-blizej-czytelnika-dzieki-najnowszej-drukarce-cyfrowej-oc-colorstream174-3900.html\")","v":"http://druk.info.pl/art/prasa-drukowana-jeszcze-blizej-czytelnika-dzieki-najnowszej-drukarce-cyfrowej-oc-colorstream174-3900.html"},null,"Firma Canon Europe prezentuje w jaki sposób rozwiazania cyfrowe wplywaja na zmiane procesu produkcji prasy na przykladzie belgijskiej drukarni i wydawnictwa Drukkerij en Uitgeverij Halewijn NV. Do klienta z Antwerpii dostarczona zostala najnowsza, szybka drukarka atramentowa Océ ColorStream® 3900. Firma Halewijn, oferujaca wczesniej jedynie druk offsetowy, szukala partnera technologicznego, który dostarczylby nie tylko innowacyjne i wszechstronne urzadzenie, ale takze pomóglby w zapewnieniu klientom bardziej elastycznej i efektywnej kosztowo oferty z zakresu druku cyfrowego. “Szybka ewolucja technologii druku oraz koniecznosc dopasowania wielkosci nakladów do zmieniajacych sie oczekiwan klientów oznacza, ze musimy patrzec przed siebie i szukac przyszlosciowych technologii, które pomoga nam zachowac przewage konkurencyjna i - co najwazniejsze - zaspokoja potrzeby klientów” - mówi Toon Osaer, Dyrektor Zarzadzajacy, Halewijn. Firma Halewijn do produkcji 300 000 egzemplarzy tygodnika “Kerk en Leven” (Kosciól i Zycie) bedzie wykorzystywac przede wszystkim urzadzenie ColorStream 3900 – jeden z najnowszych systemów z renomowanej serii Océ ColorStream 3000. Gazeta posiada 500 wersji, z czego kazda drukowana jest w zaledwie 200 egzemplarzach. “Korzystanie z rozwiazan druku cyfrowego pozwala nam byc blizej z czytelnikiem gazety. Dzieki nim mozliwa jest selekcja informacji, a w efekcie dopasowanie ich do lokalnego odbiorcy” - mówi Toon Osaer. “Przy stale postepujacej globalizacji, kontakty ze spolecznoscia lokalna sa bardzo istotne. Widzimy wyrazne zapotrzebowanie ze strony odbiorców lokalnych na odgrywanie wiekszej roli w tworzeniu tresci, w szczególnosci odnosi sie to do prasy”. “Technologia ta pozwala nam na dostarczanie produktów dostosowanych do indywidualnych potrzeb klienta w o wiele bardziej korzystny i wydajny sposób. W przypadku druku offsetowego na podobna skale cos takiego jest po prostu nieoplacalne.” Océ ColorStream 3900 to nowy model z serii szybkich urzadzen Océ ColorStream 3000, który idealnie nadaje sie do druku niskonakladowych gazet i ksiazek (monochromatycznych i kolorowych), druku transakcyjnego i TransPromo oraz korespondencji masowej. Oferuje predkosc pracy na poziomie 127 metrów na minute w rozdzielczosci 600 x 480 dpi z wielopoziomowa modulacja wielkosci punktu – laczac tym samym pierwszorzedna jakosc z maksymalna predkoscia. “To wazne, aby znalezc dostawce, który pomoze w osiagnieciu twoich celów biznesowych oraz przeprowadzi firme przez proces cyfryzacji. Dobra technologia to za malo. Wspólpracujac z firma Canon znalezlismy doswiadczonego dostawce, który wprowadza takze innowacyjne pomysly” - dodaje Toon Osaer. “Canon jest w stanie dzialac jako kompleksowy dostawca w ramach calego projektu, wlaczajac w to dostosowany do indywidualnych potrzeb system obiegu pracy, tworzenie poszczególnych wersji gazet oraz mozliwosc dynamicznej zmiany wielkosci stron”. Canon, poza urzadzeniem Océ ColorStream 3900, dostarcza firmie Halewijn równiez oprogramowanie do zarzadzania obiegiem pracy Océ PRISMA, które zostalo zaprojektowane w celu usprawnienia komercyjnego procesu produkcji: od przygotowan, poprzez introligatornie, archiwizacje, az po dystrybucje. Stefaan Vanysacker, wlasciciel P3 Print Publish – oraz zewnetrzny kierownik projektu Halewijn – który odpowiada za wdrozenie i rozwój, powiedzial: “Obserwujemy stale rosnace zapotrzebowanie na otrzymywanie informacji sprofilowanych lokalnie. Kazde wydanie tygodnika bedzie teraz zawieralo 4 strony wiadomosci lokalnych oraz stale, bardziej ogólne tresci. Tworzenie gazety w sposób cyfrowy pozwala na wysoka elastycznosc w dobrze tresci, a nowa platforma wspiera ten proces, gwarantujac wieksze poczucie interakcji z czytelnikiem”. W kwietniu 2013 roku speos – bpost company (Poczta Belgijska) i jeden z najwiekszych dostawców uslug druku (PSP, Print Service Providers) w Belgii – rozpoczal prace nad wdrazaniem drugiego systemu Océ ColorStream do produkcji czesci nakladu drukowanego tytulu “KerkenLeven”. Dzieki systemowi do druku atramentowego Océ ColorStream 3000 mozliwy jest druk w róznych konfiguracjach, które oferuja predkosc drukowania od 48 do 127 metrów/min. Obecnie w sklad serii wchodza urzadzenia Océ ColorStream 3200, 3500, 3700 oraz 3900. Peter Wolff, Head of the Commercial Printing Group w Canon Europe, skomentowal: “Zaadaptowanie przez Halewijn cyfrowej technologii jest naszym kluczowym celem biznesowym i jednoczesnie krokiem w strone modelu wspierajacego dynamiczny rozwój gazety Kerk en Leven”. “Canon jest liderem w zakresie rozwiazan do kolorowego druku atramentowego dla branzy graphic arts w Europie. Jestesmy dumni, ze Halewijn, chcac przejsc od druku tradycyjnego do cyfrowego, wybral wlasnie nasza oferte”. “Wysoka predkosc druku Océ ColorStream 3900, okazuje sie byc dla Halewijn najlepszym rozwiazaniem. Pokazuje to tym samym, ze wprowadzane przez nas innowacje i nowe technologie sa w stanie sprostac wyzwaniom, jakie niesie zmieniajace sie otoczenie rynkowe”. Na podstawie informacji firmy Canon Europe Dodane 18.06.2013 r. przez Maciej Tryburcy, Polska Poligrafia."]
["Mittelstand Cafe","Die MPG Printgroup setzt bei der Produktion von Büchern in kleinen Auflagen auf KODAK Inkjet-Digitaldrucktechnologie","2013-07-10","Internet","Online Print Version","2013-04-11",602951,470.62,"USD",470.62,"USD","Kodak","Digital Inkjet Presses and Components","Germany",{"$f":"HYPERLINK(\"http://www.mittelstandcafe.de/die-mpg-printgroup-setzt-bei-der-produktion-von-buechern-in-kleinen-auflagen-auf-kodak-inkjet-digitaldrucktechnologie-850897.html/\")","v":"http://www.mittelstandcafe.de/die-mpg-printgroup-setzt-bei-der-produktion-von-buechern-in-kleinen-auflagen-auf-kodak-inkjet-digitaldrucktechnologie-850897.html/"},null,"04.2013 – Das Produktionsvolumen der MPG Printgroup hat seit der Installation einer KODAK PROSPER 1000 Druckmaschine im Werk in King–s Lynn vor 14 Monaten erheblich zugelegt. Die Gruppe hat ihr Geschäftsmodell verändert, um dem Wandel im Buchverlagswesen zu entsprechen und konnte so ihren Umsatz verdoppeln. Auf der KODAK Inkjet-Druckmaschine werden mehr als 100.000 Bücher pro Woche gedruckt; rund 70 % davon sind Taschenbücher. An dem Standort produziert auch eine TIMSONS T-Press, die sich ebenfalls der KODAK Stream Inkjet-Technologie bedient. Gary Mackney, Betriebsleiter in King–s Lynn, sagt: “Vor drei Jahren haben wir den Übergang zur komplett digitalen Produktion beschlossen. Für uns war es ein gewaltiger Schritt, alle unsere Offsetdruckmaschinen auszumustern und sie durch die digitale Inkjet- Technologie zu ersetzen. Ich bin von der KODAK Stream Inkjet-Technologie überzeugt. Sie ist revolutionär und übertrifft alles, was sonst am Markt erhältlich ist. Unser Arbeitsalltag hat sich durch die Geschwindigkeit und Effizienz, die wir mit der KODAK PROSPER Druckmaschine und der TIMSONS T-Press erreichen können, grundlegend gewandelt. Wir haben uns für die KODAK Stream Inkjet-Technologie entschieden, weil sie die hochvolumige Fertigung von Kleinauflagen ermöglicht und einen vergleichsweise geringen Platzbedarf hat.” Vision für betriebliche Spitzenleistungen Das Team in King–s Lynn hat den Betrieb neu strukturiert, um einen reibungslosen, geradlinigen Produktionsfluss zu realisieren. Am einen Ende kommen die Papierrollen in die Halle und am anderen Ende werden die fertig gebundenen und verpackten Bücher für den Versand bereitgestellt. Gary Mackney erklärt: “Wir haben die ganze Welt bereist, um mögliche Digitaldrucklösungen in Augenschein zu nehmen. Dabei kamen wir zu dem Schluss, dass die KODAK PROSPER Druckmaschine die beste ihrer Art ist. Sie nutzt wie die TIMSONS TPress die KODAK Stream Inkjet-Technologie, weshalb wir nun über die modernsten Maschinen für die schnelle und qualitativ hochwertige Buchproduktion verfügen. Man hat nur einmal im Leben die Gelegenheit, an einer Transformation wie der vom Offset- zum Digitaldruck beteiligt zu sein. Es ist ähnlich wie beim Übergang vom Hochdruck zum Offsetdruck. Im Gegensatz zum konventionellen Offsetdruckverfahren kann der Inkjet- Fertigungsprozess in einem einfachen Ablauf drucken, falzen und ganze Buchblocks zusammentragen. Dadurch wird der Prozess wirtschaftlicher und effizienter.” Gary Mackney führt ein Beispiel an: “Kürzlich rief einer unserer großen Kunden aus London an und beauftragte uns mit einem Schnellschuss im Zusammenhang mit einer Buchvorstellung. Wir wickelten den Auftrag an einem Vormittag ab und lieferten die Bücher rechtzeitig um 13:00 Uhr in London ab. Das konnten wir mit der KODAK PROSPER Druckmaschine bewerkstelligen. Im Offsetdruck wäre uns das nicht möglich gewesen. Wir können jetzt ein Höchstmaß an Kundenzufriedenheit erreichen und unsere Kunden in dem Bestreben unterstützen, sich von ihren Wettbewerbern abzuheben.” Entwicklung eines neuen Geschäftsmodells, abgestimmt auf die Veränderungen im Verlagswesen MPG nimmt derzeit eine geschäftliche Umstrukturierung vor, um den Auswirkungen von E-Books und weltweitem Buchvertrieb Rechnung zu tragen. Das Unternehmen plant die Verdoppelung seines Ausstoßes auf der gleichen Produktionsfläche. Die MPG Printgroup, die diesen Namen noch nicht allzu lange trägt, ging aus einer Reihe strategischer Übernahmen in den letzten vier Jahren hervor. Darunter war auch die Anfang des 20. Jahrhunderts gegründete Firma Biddles. Die jüngste Übernahme war der Geschäftsbereich Buchfertigung der Cambridge University Press. MPG verfügt nun über drei Produktionsstätten – Bodmin, King–s Lynn und Bar Hill, Cambridge, ein kürzlich übernommener Betrieb, der wissenschaftliche Zeitschriften und Lehrbücher im Offsetverfahren druckt. Die Vorteile der digitalen Fertigung Gary Mackney erklärt: “Wenn Papier und Format von Job zu Job gleich sind, können wir auf der KODAK PROSPER 1000 Druckmaschine nahtlos produzieren. Die TIMSONS TPress bietet ein außergewöhnliches Papier-Handling und eine hohe Zuverlässigkeit. Die KODAK Stream Inkjet-Technologie in dieser durchdachten Druckmaschine ermöglicht Druckgeschwindigkeiten von maximal 305 m/min bei Druckbreiten von bis zu 132 cm. Ich persönlich bin überzeugt, dass wir nun mit dem Digitaldruck auf diesem Niveau über eines der effizientesten Logistikmodelle für die Buchfertigung in Europa verfügen. Der Continuous-Inkjet-Druck ist die Zukunft – er ist sauber, schnell und flexibel. Da der Buchmarkt einen fundamentalen Wandel durchmacht, benötigten wir eine Lösung für die Kleinauflagen-Buchfertigung. Seit der Installation der beiden Digitaldruckmaschinen konnten wir eine erhebliche Effizienzsteigerung erreichen und den Papierverbrauch senken. Gleichzeitig bieten die Maschinen eine unglaubliche Verfügbarkeit.” Chris Payne, Director & Vice President Marketing, Commercial Imaging Business, Kodak, fügt hinzu: “Der Buchmarkt erfährt einen raschen Wandel. Die KODAK Stream Inkjet-Technologie ermöglicht unseren Kunden, wettbewerbsfähig und dynamisch zu bleiben und die veränderten Anforderungen von Verlagen erfüllen zu können. MPG ist für Kodak ein wichtiger Partner, der eine klare Vision verfolgt und den Wandel so weit vorangetrieben hat, dass das Unternehmen nun eine der weltweit produktivsten Produktionsstätten für Bücher betreibt.” Tony Chard, Chef der MPG Printgroup, meint abschließend: “Die MPG Printgroup hat sich nach einer gründlichen Analyse der Möglichkeiten des digitalen Inkjet-Bücherdrucks für die Partnerschaft mit Kodak entschieden. Im Vorfeld unserer Investitionsentscheidung führten wir umfangreiche Drucktests durch. Wir haben als erster Buch- und Zeitschriftenhersteller ein neues Betriebsmodell aufgebaut und in die KODAK Stream Inkjet-Technologie investiert. Jetzt können wir unseren Kunden und Global Alliance-Partnern die bestmögliche Produktionsmöglichkeiten und Serviceleistungen in Verbindung mit den kostengünstigsten Lösungen für ihr Geschäft bieten.” Über den Kodak Geschäftsbereich Commercial Imaging Der Kodak Geschäftsbereich Commercial Imaging treibt Innovation und Wandel für Kunden im Akzidenz-, Verlags- und Verpackungsdruck, im Bereich des funktionalen Druckens sowie im Markt für Enterprise Services voran. Die innovativen Technologien und Lösungen von Kodak bieten Kunden einen größeren Wettbewerbsvorteil sowie eine hohe Investitionsrendite. Weitere Informationen finden Sie unter graphics.kodak.com. Weitere Informationen unter: http://"]
["Print21","Label & packaging power on show at PacPrint13","2013-07-10","Internet","News Web Sites","2013-05-14",182,14,"USD",14,"USD","Screen","Digital Inkjet Presses and Components","Australia",{"$f":"HYPERLINK(\"http://print21.com.au/labels-packaging-power-on-show-at-pacprint13/59884\")","v":"http://print21.com.au/labels-packaging-power-on-show-at-pacprint13/59884"},null,"This text has been removed due to copyright restrictions."]
["Signs.pl","Drukaka cyfrowa Océ ColorStream 3900 w belgijskiej drukarni Halewijn","2013-07-10","Internet","Online Print Version","2013-06-18",1030,14,"USD",14,"USD","Oce; Canon","Digital Inkjet Presses and Components","Poland",{"$f":"HYPERLINK(\"http://www.signs.pl/drukaka-cyfrowa-oc%C3%A9-colorstream-3900-w-belgijskiej-drukarni-halewijn,19025,artykul.html\")","v":"http://www.signs.pl/drukaka-cyfrowa-oc%C3%A9-colorstream-3900-w-belgijskiej-drukarni-halewijn,19025,artykul.html"},null,"This text has been removed due to copyright restrictions."]
["Graphic Repro On-line","Kodak Stream digital inkjet transforms MPG Printgroup","2013-07-10","Internet","Online Print Version","2013-04-19",null,50.46,"USD",50.46,"USD","Kodak","Digital Inkjet Presses and Components","South Africa",{"$f":"HYPERLINK(\"http://www.graphicrepro.co.za/asp/news_long.asp?nid=21449\")","v":"http://www.graphicrepro.co.za/asp/news_long.asp?nid=21449"},null,"This text has been removed due to copyright restrictions."]
["Svet tisku","Svet tisku - Archiv clánku","2013-07-10","Internet","Online Print Version","2013-05-20",null,147.34,"USD",147.34,"USD","Oce; Canon; Heidelberg","Digital Inkjet Presses and Components","Czech Republic",{"$f":"HYPERLINK(\"http://www.svettisku.cz/buxus/generate_page.php?page_id=179&art_start=13&buxus_svettisku=7e13f28fe8357c0a7bf51018bf67d525\")","v":"http://www.svettisku.cz/buxus/generate_page.php?page_id=179&art_start=13&buxus_svettisku=7e13f28fe8357c0a7bf51018bf67d525"},null,"This text has been removed due to copyright restrictions."]
["Print","Screen bringt digitale UV-Etikettendruckmaschine auf den Markt","2013-07-10","Internet","Online Print Version","2013-06-20",19852,14,"USD",14,"USD","Screen","Digital Inkjet Presses and Components","United States of America",{"$f":"HYPERLINK(\"http://www.print.de/News/Produkt-Technik/Screen-Truepress-Jet-L350UV_7389\")","v":"http://www.print.de/News/Produkt-Technik/Screen-Truepress-Jet-L350UV_7389"},null,"This text has been removed due to copyright restrictions."]
["Large Format Review","North Print & Pack hailed a success by organisers","2013-07-10","Internet","News Web Sites","2013-05-21",3906,14,"USD",14,"USD","Screen; Xeikon","Digital Inkjet Presses and Components","United Kingdom",{"$f":"HYPERLINK(\"http://largeformatreview.com/events/4012-north-print-a-pack-hailed-a-success-by-organisers\")","v":"http://largeformatreview.com/events/4012-north-print-a-pack-hailed-a-success-by-organisers"},null,"This text has been removed due to copyright restrictions."]
["Svet tisku","Svet tisku - Post-press","2013-07-10","Internet","Online Print Version","2013-05-20",null,147.34,"USD",147.34,"USD","Oce; Canon; Heidelberg","Digital Inkjet Presses and Components","Czech Republic",{"$f":"HYPERLINK(\"http://www.svettisku.cz/buxus/generate_page.php?page_id=93&buxus_svettisku=7e13f28fe8357c0a7bf51018bf67d525\")","v":"http://www.svettisku.cz/buxus/generate_page.php?page_id=93&buxus_svettisku=7e13f28fe8357c0a7bf51018bf67d525"},null,"This text has been removed due to copyright restrictions."]
["iStockAnalyst","Dainippon Screen Develops Wide-Format UV Inkjet Printing System for Sign and Display Industry","2013-07-10","Internet","Social Networking Sites","2013-06-25",95431,60.39,"USD",60.39,"USD","Screen","Digital Inkjet Presses and Components","United States of America",{"$f":"HYPERLINK(\"http://www.istockanalyst.com/business/news/6474603/dainippon-screen-develops-wide-format-uv-inkjet-printing-system-for-sign-and-display-industry\")","v":"http://www.istockanalyst.com/business/news/6474603/dainippon-screen-develops-wide-format-uv-inkjet-printing-system-for-sign-and-display-industry"},null,"This text has been removed due to copyright restrictions."]
["i-grafix","KBA launches retrofit inkjet for newspapers","2013-07-10","Internet","Online Print Version","2013-04-11",null,153.26,"USD",153.26,"USD","Kodak","Digital Inkjet Presses and Components","Australia",{"$f":"HYPERLINK(\"http://www.i-grafix.com/index.php/news/new-zealand/kba-launches-retrofit-inkjet-for-newspapers.html\")","v":"http://www.i-grafix.com/index.php/news/new-zealand/kba-launches-retrofit-inkjet-for-newspapers.html"},null,"This text has been removed due to copyright restrictions."]
["Infotech News","Dainippon Screen Develops Wide-Format UV Inkjet Printing System for Sign and Display Industry","2013-07-10","Internet","News Web Sites","2013-06-25",7374,14,"USD",14,"USD","Screen","Digital Inkjet Presses and Components","United States of America",{"$f":"HYPERLINK(\"http://it.tmcnet.com/news/2013/06/25/7228729.htm\")","v":"http://it.tmcnet.com/news/2013/06/25/7228729.htm"},null,"This text has been removed due to copyright restrictions."]
["Svet tisku","Svet tisku - Adresáre a profily","2013-07-10","Internet","Online Print Version","2013-05-20",null,149.52000000000001,"USD",149.52000000000001,"USD","Oce; Canon; Heidelberg","Digital Inkjet Presses and Components","Czech Republic",{"$f":"HYPERLINK(\"http://www.svettisku.cz/buxus/generate_page.php?page_id=2140&buxus_svettisku=7e13f28fe8357c0a7bf51018bf67d525\")","v":"http://www.svettisku.cz/buxus/generate_page.php?page_id=2140&buxus_svettisku=7e13f28fe8357c0a7bf51018bf67d525"},null,"This text has been removed due to copyright restrictions."]
["Print & Paper Online","RCS invests in Europe’s first Truepress JetSX B2","2013-07-10","Internet","News Web Sites","2013-04-16",null,184.41,"USD",184.41,"USD","Screen","Digital Inkjet Presses and Components","United Kingdom",{"$f":"HYPERLINK(\"http://www.paperandprint.com/digital-labels-and-packaging/features/dlp-2013/april-2013/130416-rcs-personalised-packaging.aspx\")","v":"http://www.paperandprint.com/digital-labels-and-packaging/features/dlp-2013/april-2013/130416-rcs-personalised-packaging.aspx"},null,"This text has been removed due to copyright restrictions."]
["GXpress","Bigger loss, but Kodak is making ‘steady progress’ to profit on GXpress","2013-07-10","Internet","News Web Sites","2013-05-30",null,218.67,"USD",218.67,"USD","Kodak","Digital Inkjet Presses and Components","United States of America",{"$f":"HYPERLINK(\"http://www.gxpress.net/bigger-loss-but-kodak-is-making-steady-progress-to-profit-cms-1685\")","v":"http://www.gxpress.net/bigger-loss-but-kodak-is-making-steady-progress-to-profit-cms-1685"},null,"This text has been removed due to copyright restrictions."]
["SYS-CON India","Dainippon Screen Develops Wide-Format UV Inkjet Printing System for Sign and Display Industry","2013-07-10","Internet","News Web Sites","2013-06-25",null,238.61,"USD",238.61,"USD","Screen","Digital Inkjet Presses and Components","India",{"$f":"HYPERLINK(\"http://in.sys-con.com/node/2713068\")","v":"http://in.sys-con.com/node/2713068"},null,"This text has been removed due to copyright restrictions."]
["GXpress","Print finishing opportunities as Geon gear goes under the hammer on GXpress","2013-07-10","Internet","News Web Sites","2013-05-17",null,57.94,"USD",57.94,"USD","Kodak; Heidelberg","Digital Inkjet Presses and Components","United States of America",{"$f":"HYPERLINK(\"http://www.gxpress.net/print-finishing-opportunities-as-geon-gear-goes-under-the-hammer-cms-2584\")","v":"http://www.gxpress.net/print-finishing-opportunities-as-geon-gear-goes-under-the-hammer-cms-2584"},null,"This text has been removed due to copyright restrictions."]
["SYS-CON BELGIUM","Dainippon Screen Develops Wide-Format UV Inkjet Printing System for Sign and Display Industry","2013-07-10","Internet","News Web Sites","2013-06-25",0,238.61,"USD",238.61,"USD","Screen","Digital Inkjet Presses and Components","Belgium",{"$f":"HYPERLINK(\"http://be.sys-con.com/node/2713068\")","v":"http://be.sys-con.com/node/2713068"},null,"This text has been removed due to copyright restrictions."]
["Internet-intelligenz.de","Die MPG Printgroup setzt bei der Produktion von Büchern in kleinen Auflagen auf KODAK Inkjet-Digitaldrucktechnologie","2013-07-10","Internet","Online Print Version","2013-04-11",430679,348.81,"USD",348.81,"USD","Kodak","Digital Inkjet Presses and Components","Germany",{"$f":"HYPERLINK(\"http://www.internet-intelligenz.de/artikel/850897/die-mpg-printgroup-setzt-bei-der-produktion-von-buechern-in-kleinen-auflagen-auf-kodak-inkjet-digitaldrucktechnologie.html\")","v":"http://www.internet-intelligenz.de/artikel/850897/die-mpg-printgroup-setzt-bei-der-produktion-von-buechern-in-kleinen-auflagen-auf-kodak-inkjet-digitaldrucktechnologie.html"},null,"This text has been removed due to copyright restrictions."]
["GXpress","Talking shop: Ipex retro on GXpress","2013-07-10","Internet","News Web Sites","2013-05-28",null,580.95000000000005,"USD",580.95000000000005,"USD","Kodak; Oce; Screen; Xerox; Agfa; Heidelberg","Digital Inkjet Presses and Components","United States of America",{"$f":"HYPERLINK(\"http://www.gxpress.net/talking-shop-ipex-retro-cms-1169\")","v":"http://www.gxpress.net/talking-shop-ipex-retro-cms-1169"},null,"This text has been removed due to copyright restrictions."]